Workbook

Sheet Contents
B4: Use of Discretionary Housing Payments GB - Analysis of End of Year Returns from Local Authorities
B5: April 2015 - March 2016
B7: Published: 6 July 2016
B8: Coverage: GB
B9: Frequency: Biannual
B11: Contents
B13: To access data tables, select the table headings or tabs.
B14: To return to contents click "Back to contents" link at the top of each page.
B16: Table | C16: Table Description
B17: Financial returns | C17: 2015-16 financial returns data
B18: Monitoring returns | C18: 2015-16 monitoring returns data
B19: 1 | C19: DHP government funding for Great Britain (£million)
B20: 2 | C20: DHP expenditure compared with full year allocation
B21: Chart 1 | C21: DHP expenditure distribution for both Great Britain, and Great Britain excluding Scotland
B22: 3a | C22: DHP expenditure distribution for Great Britain
B23: 3b | C23: DHP expenditure distribution for Great Britain excluding Scotland
B24: 4 | C24: Amount over/under-spent by Country
B25: 5 | C25: Proportion of DHP expenditure on each welfare reform for both Great Britain and Great Britain excluding Scotland
B26: 6 | C26: DHP expenditure compared with DHP allocation by reform measure for both Great Britain, and Great Britain excluding Scotland
B27: 7 | C27: DHP expenditure by purpose of DHP
B28: 8 | C28: Percentage of DHP expenditure on each purpose for DHP category, by reform measure for both Great Britain, and Great Britain excluding Scotland
B29: 9 | C29: Proportion of LAs providing monitoring return financial purpose of award data
B30: 10 | C30: Proportion of LAs providing monitoring return financial reform data
B33: Contacts
B35: Responsible statistician: Neil Sorensen
B36: Telephone: 0191 216 2320
B37: Email: neil.sorensen@dwp.gsi.gov.uk
B38: BP5201 Benton Park View, Newcastle upon Tyne. NE98 1YX
B39: Author: Victoria Page
B40: Telephone: 0207 449 7256
B41: Caxton House, Tothill Street, London. SW1H 9NA
B42: Email: victoria.page@dwp.gsi.gov.uk
B43: Press enquiries:
B44: https://www.gov.uk/government/organisations/department-for-work-pensions/about/media-enquiries
B46: Further Information
B48: Website for this release:
B49: https://www.gov.uk/government/collections/discretionary-housing-payments-statistics
B51: Information on Official Statistics is available via the UK Statistics Authority website:
B52: http://www.statisticsauthority.gov.uk/
B54: Information about statistics at DWP is available via the Department’s website:
B55: https://www.gov.uk/government/organisations/department-for-work-and-pensions/about/statistics

Sheet 2015-16 financial returns data
A1: Back to contents
A2: Summary of DHP financial returns (2015/16) | F2: Government contribution
A3: Authority | B3: Region | C3: Country | E3: DHP Financial Expenditure 2015/16 (£) | F3: Original allocation (£)
A4: Aberdeen | B4: Scotland | C4: Scotland | E4: 1369191 | F4: 288745
A5: Aberdeenshire | B5: Scotland | C5: Scotland | E5: 661617 | F5: 477827
A6: Adur | B6: South East | C6: England | E6: 68738 | F6: 72249
A7: Allerdale | B7: North West | C7: England | E7: 189832 | F7: 190279
A8: Amber Valley | B8: East Midlands | C8: England | E8: 129091 | F8: 155207
A9: Angus | B9: Scotland | C9: Scotland | E9: 502350 | F9: 331583
A10: Argyll and Bute | B10: Scotland | C10: Scotland | E10: 539981 | F10: 371352
A11: Arun | B11: South East | C11: England | E11: 171089 | F11: 173365
A12: Ashfield | B12: East Midlands | C12: England | E12: 142421 | F12: 187121
A13: Ashford | B13: South East | C13: England | E13: 148945 | F13: 149212
A14: Aylesbury Vale | B14: South East | C14: England | E14: 195680 | F14: 192659
A15: Babergh | B15: Eastern | C15: England | E15: 88707 | F15: 83945
A16: Barking & Dagenham | B16: Greater London | C16: England | E16: 736777 | F16: 749453
A17: Barnet | B17: Greater London | C17: England | E17: 1099279 | F17: 1263389
A18: Barnsley | B18: Yorks and Humberside | C18: England | E18: 459821 | F18: 460985
A19: Barrow in Furness | B19: North West | C19: England | E19: 89607 | F19: 75698
A20: Basildon | B20: Eastern | C20: England | E20: 471378 | F20: 363989
A21: Basingstoke and Deane | B21: South East | C21: England | E21: 261541 | F21: 259417
A22: Bassetlaw | B22: East Midlands | C22: England | E22: 156041 | F22: 156041
A23: Bath & North East Somerset | B23: South West | C23: England | E23: 168018 | F23: 185742
A24: Bedford | B24: Eastern | C24: England | E24: 260206 | F24: 254161
A25: Bexley | B25: Greater London | C25: England | E25: 409757 | F25: 433043
A26: Birmingham | B26: West Midlands | C26: England | E26: 3312547 | F26: 3051683
A27: Blaby | B27: East Midlands | C27: England | E27: 42222 | F27: 47062
A28: Blackburn with Darwen | B28: North West | C28: England | E28: 295464 | F28: 296984
A29: Blackpool | B29: North West | C29: England | E29: 229802 | F29: 369724
A30: Blaenau Gwent | B30: Wales | C30: Wales | E30: 124449 | F30: 180566
A31: Bolsover | B31: East Midlands | C31: England | E31: 95428 | F31: 123279
A32: Bolton | B32: North West | C32: England | E32: 557202 | F32: 586776
A33: Boston | B33: East Midlands | C33: England | E33: 50191 | F33: 84208
A34: Bournemouth | B34: South West | C34: England | E34: 365383 | F34: 340296
A35: Bracknell Forest | B35: South East | C35: England | E35: 126426 | F35: 126547
A36: Bradford | B36: Yorks and Humberside | C36: England | E36: 1190005 | F36: 890006
A37: Braintree | B37: Eastern | C37: England | E37: 167695 | F37: 162654
A38: Breckland | B38: Eastern | C38: England | E38: 122768 | F38: 187775
A39: Brent | B39: Greater London | C39: England | E39: 2651625 | F39: 2606875
A40: Brentwood | B40: Eastern | C40: England | E40: 56422 | F40: 58426
A41: Bridgend | B41: Wales | C41: Wales | E41: 256368 | F41: 252060
A42: Brighton and Hove | B42: South East | C42: England | E42: 630192 | F42: 611084
A43: Bristol | B43: South West | C43: England | E43: 1103452 | F43: 945862
A44: Broadland | B44: Eastern | C44: England | E44: 72229 | F44: 76039
A45: Bromley | B45: Greater London | C45: England | E45: 509475 | F45: 509406
A46: Bromsgrove | B46: West Midlands | C46: England | E46: 51816 | F46: 57774
A47: Broxbourne | B47: Eastern | C47: England | E47: 141108 | F47: 141108
A48: Broxtowe | B48: East Midlands | C48: England | E48: 84521 | F48: 89873
A49: Burnley | B49: North West | C49: England | E49: 154298 | F49: 155940
A50: Bury | B50: North West | C50: England | E50: 0 | F50: 250465
A51: Caerphilly | B51: Wales | C51: Wales | E51: 384088 | F51: 381973
A52: Calderdale | B52: Yorks and Humberside | C52: England | E52: 100888 | F52: 278211
A53: Cambridge | B53: Eastern | C53: England | E53: 150094 | F53: 149334
A54: Camden | B54: Inner London | C54: England | E54: 856556 | F54: 889647
A55: Cannock Chase | B55: West Midlands | C55: England | E55: 79422 | F55: 93570
A56: Canterbury | B56: South East | C56: England | E56: 157484 | F56: 159534
A57: Cardiff | B57: Wales | C57: Wales | E57: 817182 | F57: 815034
A58: Carlisle | B58: North West | C58: England | E58: 147406 | F58: 155375
A59: Carmarthenshire | B59: Wales | C59: Wales | E59: 313645 | F59: 305603
A60: Castle Point | B60: Eastern | C60: England | E60: 78318 | F60: 85052
A61: Central Bedfordshire | B61: Eastern | C61: England | E61: 263441 | F61: 254525
A62: Ceredigion | B62: Wales | C62: Wales | E62: 241088 | F62: 225498
A63: Charnwood | B63: East Midlands | C63: England | E63: 125763 | F63: 137517
A64: Chelmsford | B64: Eastern | C64: England | E64: 224669 | F64: 174380
A65: Cheltenham | B65: South West | C65: England | E65: 99941 | F65: 142971
A66: Cherwell | B66: South East | C66: England | E66: 160480 | F66: 159368
A67: Cheshire East | B67: North West | C67: England | E67: 357759 | F67: 372854
A68: Cheshire West and Chester | B68: North West | C68: England | E68: 467710 | F68: 472924
A69: Chesterfield | B69: East Midlands | C69: England | E69: 173302 | F69: 173312
A70: Chichester | B70: South East | C70: England | E70: 106619 | F70: 116154
A71: Chiltern | B71: South East | C71: England | E71: 61641 | F71: 65130
A72: Chorley | B72: North West | C72: England | E72: 86199 | F72: 114869
A73: Christchurch | B73: South West | C73: England | E73: 45430 | F73: 48223
A74: City of London | B74: Inner London | C74: England | E74: 25918 | F74: 21562
A75: Clackmannanshire | B75: Scotland | C75: Scotland | E75: 596570 | F75: 196236
A76: Colchester | B76: Eastern | C76: England | E76: 284557 | F76: 239924
A77: Comhairle nan Eilean Siar | B77: Scotland | C77: Scotland | E77: 143866 | F77: 103909
A78: Conwy | B78: Wales | C78: Wales | E78: 152836 | F78: 153656
A79: Copeland | B79: North West | C79: England | E79: 156828 | F79: 171252
A80: Corby | B80: East Midlands | C80: England | E80: 79115 | F80: 128675
A81: Cornwall | B81: South West | C81: England | E81: 621920 | F81: 664024
A82: Cotswold | B82: South West | C82: England | E82: 78984 | F82: 79665
A83: Coventry | B83: West Midlands | C83: England | E83: 635880 | F83: 619313
A84: Craven | B84: Yorks and Humberside | C84: England | E84: 118864 | F84: 125880
A85: Crawley | B85: South East | C85: England | E85: 237554 | F85: 196609
A86: Croydon | B86: Greater London | C86: England | E86: 0 | F86: 1201438
A87: Dacorum | B87: Eastern | C87: England | E87: 241220 | F87: 233999
A88: Darlington | B88: North East | C88: England | E88: 153915 | F88: 150935
A89: Dartford | B89: South East | C89: England | E89: 100028 | F89: 101075
A90: Daventry | B90: East Midlands | C90: England | E90: 73884 | F90: 88080
A91: Denbighshire | B91: Wales | C91: Wales | E91: 130266 | F91: 158793
A92: Derby | B92: East Midlands | C92: England | E92: 896522 | F92: 475669
A93: Derbyshire Dales | B93: East Midlands | C93: England | E93: 69542 | F93: 63082
A94: Doncaster | B94: Yorks and Humberside | C94: England | E94: 703241 | F94: 570107
A95: Dover | B95: South East | C95: England | E95: 156463 | F95: 156875
A96: Dudley | B96: West Midlands | C96: England | E96: 1119907 | F96: 569990
A97: Dumfries and Galloway | B97: Scotland | C97: Scotland | E97: 1182216 | F97: 688364
A98: Dundee | B98: Scotland | C98: Scotland | E98: 2110128 | F98: 412411
A99: Durham | B99: North East | C99: England | E99: 992512 | F99: 981783
A100: Ealing | B100: Greater London | C100: England | E100: 1899538 | F100: 1904697
A101: East Ayrshire | B101: Scotland | C101: Scotland | E101: 1684498 | F101: 305931
A102: East Cambridgeshire | B102: Eastern | C102: England | E102: 52807 | F102: 77998
A103: East Devon | B103: South West | C103: England | E103: 107801 | F103: 101211
A104: East Dorset | B104: South West | C104: England | E104: 45570 | F104: 64218
A105: East Dunbartonshire | B105: Scotland | C105: Scotland | E105: 487251 | F105: 82691
A106: East Hampshire | B106: South East | C106: England | E106: 88313 | F106: 87347
A107: East Hertfordshire | B107: Eastern | C107: England | E107: 123259 | F107: 124641
A108: East Lindsey | B108: East Midlands | C108: England | E108: 178687 | F108: 185225
A109: East Lothian | B109: Scotland | C109: Scotland | E109: 470115 | F109: 106448
A110: East Northamptonshire | B110: East Midlands | C110: England | E110: 89740 | F110: 91995
A111: East Renfrewshire | B111: Scotland | C111: Scotland | E111: 292275 | F111: 59864
A112: East Riding of Yorkshire | B112: Yorks and Humberside | C112: England | E112: 297778 | F112: 287614
A113: East Staffordshire | B113: West Midlands | C113: England | E113: 138241 | F113: 126551
A114: Eastbourne | B114: South East | C114: England | E114: 162857 | F114: 162574
A115: Eastleigh | B115: South East | C115: England | E115: 125744 | F115: 134446
A116: Eden | B116: North West | C116: England | E116: 121903 | F116: 169040
A117: Edinburgh | B117: Scotland | C117: Scotland | E117: 4503007 | F117: 1343558
A118: Elmbridge | B118: South East | C118: England | E118: 145365 | F118: 137381
A119: Enfield | B119: Greater London | C119: England | E119: 1871270 | F119: 1626073
A120: Epping Forest | B120: Eastern | C120: England | E120: 57777 | F120: 123215
A121: Epsom and Ewell | B121: South East | C121: England | E121: 77830 | F121: 77791
A122: Erewash | B122: East Midlands | C122: England | E122: 110953 | F122: 132345
A123: Exeter | B123: South West | C123: England | E123: 142610 | F123: 145164
A124: Falkirk | B124: Scotland | C124: Scotland | E124: 1494953 | F124: 257649
A125: Fareham | B125: South East | C125: England | E125: 57098 | F125: 60382
A126: Fenland | B126: Eastern | C126: England | E126: 101021 | F126: 118088
A127: Fife | B127: Scotland | C127: Scotland | E127: 3650582 | F127: 705090
A128: Flintshire | B128: Wales | C128: Wales | E128: 206683 | F128: 208883
A129: Forest Heath | B129: Eastern | C129: England | E129: 62429 | F129: 65655
A130: Forest of Dean | B130: South West | C130: England | E130: 51739 | F130: 87579
A131: Fylde | B131: North West | C131: England | E131: 33804 | F131: 67102
A132: Gateshead | B132: North East | C132: England | E132: 835079 | F132: 426183
A133: Gedling | B133: East Midlands | C133: England | E133: 103641 | F133: 101831
A134: Glasgow | B134: Scotland | C134: Scotland | E134: 8620181 | F134: 1651754
A135: Gloucester | B135: South West | C135: England | E135: 149351 | F135: 185753
A136: Gosport | B136: South East | C136: England | E136: 80972 | F136: 107916
A137: Gravesham | B137: South East | C137: England | E137: 175162 | F137: 176894
A138: Great Yarmouth | B138: Eastern | C138: England | E138: 146419 | F138: 172367
A139: Greenwich | B139: Inner London | C139: England | E139: 1151557 | F139: 729275
A140: Guildford | B140: South East | C140: England | E140: 116229 | F140: 130900
A141: Gwynedd | B141: Wales | C141: Wales | E141: 558141 | F141: 620483
A142: Hackney | B142: Inner London | C142: England | E142: 1756075 | F142: 1507187
A143: Halton | B143: North West | C143: England | E143: 361381 | F143: 343725
A144: Hambleton | B144: Yorks and Humberside | C144: England | E144: 73425 | F144: 78920
A145: Hammersmith and Fulham | B145: Inner London | C145: England | E145: 787958 | F145: 787958
A146: Harborough | B146: East Midlands | C146: England | E146: 33205 | F146: 46343
A147: Haringey | B147: Greater London | C147: England | E147: 1572149 | F147: 1485882
A148: Harlow | B148: Eastern | C148: England | E148: 169974 | F148: 173789
A149: Harrogate | B149: Yorks and Humberside | C149: England | E149: 93567 | F149: 109387
A150: Harrow | B150: Greater London | C150: England | E150: 733413 | F150: 677094
A151: Hart | B151: South East | C151: England | E151: 55552 | F151: 47805
A152: Hartlepool | B152: North East | C152: England | E152: 283242 | F152: 286417
A153: Hastings | B153: South East | C153: England | E153: 279744 | F153: 230368
A154: Havant | B154: South East | C154: England | E154: 151713 | F154: 151713
A155: Havering | B155: Greater London | C155: England | E155: 371987 | F155: 379580
A156: Herefordshire | B156: West Midlands | C156: England | E156: 175323 | F156: 195709
A157: Hertsmere | B157: Eastern | C157: England | E157: 173065 | F157: 170604
A158: High Peak | B158: East Midlands | C158: England | E158: 64917 | F158: 71857
A159: Highland | B159: Scotland | C159: Scotland | E159: 1886913 | F159: 1189515
A160: Hillingdon | B160: Greater London | C160: England | E160: 673230 | F160: 673124
A161: Hinckley and Bosworth | B161: East Midlands | C161: England | E161: 97895 | F161: 78129
A162: Horsham | B162: South East | C162: England | E162: 98611 | F162: 102036
A163: Hounslow | B163: Greater London | C163: England | E163: 714666 | F163: 714467
A164: Huntingdonshire | B164: Eastern | C164: England | E164: 129233 | F164: 161238
A165: Hyndburn | B165: North West | C165: England | E165: 116363 | F165: 118746
A166: Inverclyde | B166: Scotland | C166: Scotland | E166: 960067 | F166: 185910
A167: Ipswich | B167: Eastern | C167: England | E167: 251800 | F167: 246262
A168: Isle of Anglesey | B168: Wales | C168: Wales | E168: 118581 | F168: 118413
A169: Isle of Wight | B169: South East | C169: England | E169: 186184 | F169: 185553
A170: Isles of Scilly | B170: South West | C170: England | E170: 0 | F170: 169
A171: Islington | B171: Inner London | C171: England | E171: 1100368 | F171: 989332
A172: Kensington and Chelsea | B172: Inner London | C172: England | E172: 1376423 | F172: 1137021
A173: Kettering | B173: East Midlands | C173: England | E173: 110030 | F173: 113975
A174: King's Lynn & West Norfolk | B174: Eastern | C174: England | E174: 179747 | F174: 182100
A175: Kingston upon Hull | B175: Yorks and Humberside | C175: England | E175: 682190 | F175: 681189
A176: Kingston upon Thames | B176: Greater London | C176: England | E176: 300470 | F176: 308670
A177: Kirklees | B177: Yorks and Humberside | C177: England | E177: 486973 | F177: 551690
A178: Knowsley | B178: North West | C178: England | E178: 570636 | F178: 563700
A179: Lambeth | B179: Inner London | C179: England | E179: 1266189 | F179: 1277456
A180: Lancaster | B180: North West | C180: England | E180: 114695 | F180: 162472
A181: Leeds | B181: Yorks and Humberside | C181: England | E181: 1953110 | F181: 1531192
A182: Leicester | B182: East Midlands | C182: England | E182: 681828 | F182: 681863
A183: Lewes | B183: South East | C183: England | E183: 116315 | F183: 113991
A184: Lewisham | B184: Inner London | C184: England | E184: 1219022 | F184: 1226063
A185: Lichfield | B185: West Midlands | C185: England | E185: 40284 | F185: 79039
A186: Lincoln | B186: East Midlands | C186: England | E186: 162918 | F186: 139678
A187: Liverpool | B187: North West | C187: England | E187: 1942848 | F187: 1751657
A188: Luton | B188: Eastern | C188: England | E188: 403566 | F188: 402467
A189: Maidstone | B189: South East | C189: England | E189: 159113 | F189: 162344
A190: Maldon | B190: Eastern | C190: England | E190: 52195 | F190: 52594
A191: Malvern Hills | B191: West Midlands | C191: England | E191: 71759 | F191: 86737
A192: Manchester | B192: North West | C192: England | E192: 1901789 | F192: 1874257
A193: Mansfield | B193: East Midlands | C193: England | E193: 83618 | F193: 170670
A194: Medway | B194: South East | C194: England | E194: 336353 | F194: 372112
A195: Melton | B195: East Midlands | C195: England | E195: 34420 | F195: 35202
A196: Mendip | B196: South West | C196: England | E196: 113771 | F196: 114330
A197: Merthyr Tydfil | B197: Wales | C197: Wales | E197: 137460 | F197: 138154
A198: Merton | B198: Greater London | C198: England | E198: 436805 | F198: 431539
A199: Mid Devon | B199: South West | C199: England | E199: 44201 | F199: 61358
A200: Mid Suffolk | B200: Eastern | C200: England | E200: 63910 | F200: 57914
... 183 more rows

Sheet 2015-16 monitoring returns
A1: Back to contents | E1: Benefit Cap | M1: Removal of the spare room subsidy | U1: LHA reforms | AC1: Combination of reforms | AK1: Other (non welfare reform) | AU1: Central Government funding
A2: Authority | B2: Region | C2: Country | E2: To help secure and move to alternative accommodation (e.g. rent deposit) (£) | F2: To help with short term rental costs while the claimant secures and moves to alternative accommodation (£) | G2: To help with short term rental costs while the claimant seeks employment (£) | H2: To help with on-going rental costs for disabled person in adapted accommodation (£) | I2: To help with on-going rental costs for a foster carer (£) | J2: To help with on-going rental costs for any other reason (£) | K2: Total expenditure Benefit cap (£) | M2: To help secure and move to alternative accommodation (e.g. rent deposit) (£) | N2: To help with short term rental costs while the claimant secures and moves to alternative accommodation (£) | O2: To help with short term rental costs while the claimant seeks employment (£) | P2: To help with on-going rental costs for disabled person in adapted accommodation (£) | Q2: To help with on-going rental costs for a foster carer (£) | R2: To help with on-going rental costs for any other reason (£) | S2: Total expenditure Removal of the spare room subsidy (£) | U2: To help secure and move to alternative accommodation (e.g. rent deposit) (£) | V2: To help with short term rental costs while the claimant secures and moves to alternative accommodation (£) | W2: To help with short term rental costs while the claimant seeks employment (£) | X2: To help with on-going rental costs for disabled person in adapted accommodation (£) | Y2: To help with on-going rental costs for a foster carer (£) | Z2: To help with on-going rental costs for any other reason (£) | AA2: Total expenditure LHA reforms (£) | AC2: To help secure and move to alternative accommodation (e.g. rent deposit) (£) | AD2: To help with short term rental costs while the claimant secures and moves to alternative accommodation (£) | AE2: To help with short term rental costs while the claimant seeks employment (£) | AF2: To help with on-going rental costs for disabled person in adapted accommodation (£) | AG2: To help with on-going rental costs for a foster carer (£) | AH2: To help with on-going rental costs for any other reason (£) | AI2: Total expenditure Combination of reforms (£) | AK2: To help secure and move to alternative accommodation (e.g. rent deposit) (£) | AL2: To help with short term rental costs while the claimant secures and moves to alternative accommodation (£) | AM2: To help with short term rental costs while the claimant seeks employment (£) | AN2: To help with on-going rental costs for disabled person in adapted accommodation (£) | AO2: To help with on-going rental costs for a foster carer (£) | AP2: To help with on-going rental costs for any other reason (£) | AQ2: Total expenditure Other (non welfare reform) (£) | AS2: Total expenditure (£) | AU2: Total allocation (£) | AV2: Benefit cap (£) | AW2: Removal of spare room subsidy in social rented sector (£) | AX2: LHA reforms (£)
A3: Aberdeen | B3: Scotland | C3: Scotland | E3: 0 | F3: 0 | G3: 9132.97 | H3: 0 | I3: 0 | J3: 3977.67 | K3: 13110.64 | M3: 0 | N3: 3634.29 | O3: 85909.45 | P3: 80446.67 | Q3: 0 | R3: 1156554.03 | S3: 1326544.44 | U3: 0 | V3: 0 | W3: 0 | X3: 0 | Y3: 0 | Z3: 3711.89 | AA3: 3711.89 | AC3: 0 | AD3: 0 | AE3: 0 | AF3: 0 | AG3: 0 | AH3: 0 | AI3: 0 | AK3: 0 | AL3: 0 | AM3: 662.66 | AN3: 101.55 | AO3: 0 | AP3: 25059.76 | AQ3: 25823.97 | AS3: 1369190.94 | AU3: 288745 | AV3: 67926.89607 | AW3: 166696.1926 | AX3: 19532.00456
A4: Aberdeenshire | B4: Scotland | C4: Scotland | AU4: 477827 | AV4: 14215.74244 | AW4: 420563.1405 | AX4: 19185.28012
A5: Adur | B5: South East | C5: England | AU5: 72249 | AV5: 11278.96555 | AW5: 30632.75179 | AX5: 16976.23185
A6: Allerdale | B6: North West | C6: England | E6: 0 | F6: 0 | G6: 0 | H6: 0 | I6: 0 | J6: 515.49 | K6: 515.49 | M6: 277.45 | N6: 35046.72 | O6: 15846.86 | P6: 11700 | Q6: 781.4 | R6: 55809.01 | S6: 119461.44 | U6: 0 | V6: 599.63 | W6: 0 | X6: 0 | Y6: 0 | Z6: 3454.24 | AA6: 4053.87 | AC6: 0 | AD6: 0 | AE6: 617.84 | AF6: 0 | AG6: 0 | AH6: 4398.99 | AI6: 5016.83 | AK6: 0 | AL6: 0 | AM6: 587.38 | AN6: 58.41 | AO6: 0 | AP6: 63588.46 | AQ6: 64234.25 | AS6: 193281.88 | AU6: 190279 | AV6: 10141.50734 | AW6: 150914.1077 | AX6: 12065.38986
A7: Amber Valley | B7: East Midlands | C7: England | E7: 0 | F7: 0 | G7: 0 | H7: 0 | I7: 0 | J7: 1265 | K7: 1265 | M7: 16739.94 | N7: 773.2 | O7: 10033.42 | P7: 6752.29 | Q7: 0 | R7: 44128.33 | S7: 78427.18 | U7: 5217.51 | V7: 0 | W7: 4827.89 | X7: 0 | Y7: 0 | Z7: 8173.34 | AA7: 18218.74 | AC7: 0 | AD7: 0 | AE7: 71.52 | AF7: 0 | AG7: 0 | AH7: 1746.72 | AI7: 1818.24 | AK7: 4499.4 | AL7: 30.7 | AM7: 1579.62 | AN7: 1412.7 | AO7: 0 | AP7: 24137.65 | AQ7: 31660.07 | AS7: 131389.23 | AU7: 155207 | AV7: 16198.96938 | AW7: 91546.43491 | AX7: 28000.15094
A8: Angus | B8: Scotland | C8: Scotland | E8: 0 | F8: 930.86 | G8: 0 | H8: 0 | I8: 0 | J8: 22639.45 | K8: 23570.31 | M8: 0 | N8: 38625.01 | O8: 0 | P8: 8081.66 | Q8: 0 | R8: 342612.14 | S8: 389318.81 | U8: 15141 | V8: 10815.66 | W8: 1634.21 | X8: 470.86 | Y8: 0 | Z8: 2652.78 | AA8: 30714.51 | AC8: 1065 | AD8: 0 | AE8: 0 | AF8: 0 | AG8: 0 | AH8: 1624.38 | AI8: 2689.38 | AK8: 5421.7 | AL8: 1619.18 | AM8: 5036.15 | AN8: 0 | AO8: 0 | AP8: 43980.3 | AQ8: 56057.33 | AS8: 502350.34 | AU8: 331583 | AV8: 4020.867702 | AW8: 291823.976 | AX8: 18467.6549
A9: Argyll and Bute | B9: Scotland | C9: Scotland | E9: 0 | F9: 0 | G9: 0 | H9: 0 | I9: 0 | J9: 9349.5 | K9: 9349.5 | M9: 0 | N9: 0 | O9: 887.26 | P9: 0 | Q9: 0 | R9: 452417.75 | S9: 453305.01 | U9: 0 | V9: 7450.87 | W9: 9456.17 | X9: 306.28 | Y9: 0 | Z9: 20612.69 | AA9: 37826.01 | AC9: 0 | AD9: 826.3 | AE9: 0 | AF9: 0 | AG9: 0 | AH9: 0 | AI9: 826.3 | AK9: 19205.8 | AL9: 296.81 | AM9: 2184.44 | AN9: 0 | AO9: 0 | AP9: 16987.41 | AQ9: 38674.46 | AS9: 539981.28 | AU9: 371352 | AV9: 11092.04883 | AW9: 331858.4981 | AX9: 13636.64852
A10: Arun | B10: South East | C10: England | E10: 0 | F10: 0 | G10: 689.4 | H10: 0 | I10: 0 | J10: 3164.4 | K10: 3853.8 | M10: 18424.57 | N10: 1367.92 | O10: 391.08 | P10: 0 | Q10: 0 | R10: 7889.08 | S10: 28072.65 | U10: 8977.48 | V10: 697.98 | W10: 6088.68 | X10: 0 | Y10: 0 | Z10: 14384.46 | AA10: 30148.6 | AC10: 0 | AD10: 0 | AE10: 0 | AF10: 0 | AG10: 0 | AH10: 335.02 | AI10: 335.02 | AK10: 91542.16 | AL10: 1374.4 | AM10: 2020.2 | AN10: 0 | AO10: 0 | AP10: 13742.61 | AQ10: 108679.37 | AS10: 171089.44 | AU10: 173365 | AV10: 29456.71459 | AW10: 61861.97363 | AX10: 49475.23244
A11: Ashfield | B11: East Midlands | C11: England | E11: 0 | F11: 1644.92 | G11: 0 | H11: 0 | I11: 0 | J11: 0 | K11: 1644.92 | M11: 0 | N11: 64022.14 | O11: 1159.44 | P11: 0 | Q11: 0 | R11: 38.84 | S11: 65220.42 | U11: 0 | V11: 23734.74 | W11: 253.26 | X11: 0 | Y11: 0 | Z11: 0 | AA11: 23988 | AC11: 0 | AD11: 14444.8 | AE11: 3890.85 | AF11: 0 | AG11: 0 | AH11: 19297.98 | AI11: 37633.63 | AK11: 0 | AL11: 3040.32 | AM11: 3160.18 | AN11: 0 | AO11: 0 | AP11: 7733.17 | AQ11: 13933.67 | AS11: 142420.64 | AU11: 187121 | AV11: 27258.84081 | AW11: 108052.1577 | AX11: 29694.4053
A12: Ashford | B12: South East | C12: England | E12: 750.18 | F12: 0 | G12: 0 | H12: 0 | I12: 0 | J12: 2460.82 | K12: 3211 | M12: 360 | N12: 12632.2 | O12: 573.97 | P12: 170 | Q12: 0 | R12: 26638.98 | S12: 40375.15 | U12: 3946.03 | V12: 0 | W12: 31.6 | X12: 0 | Y12: 0 | Z12: 35105.47 | AA12: 39083.1 | AC12: 0 | AD12: 0 | AE12: 0 | AF12: 0 | AG12: 0 | AH12: 500 | AI12: 500 | AK12: 5596.76 | AL12: 0 | AM12: 0 | AN12: 0 | AO12: 453.86 | AP12: 59725.46 | AQ12: 65776.08 | AS12: 148945.33 | AU12: 149212 | AV12: 35124.7777 | AW12: 66614.67444 | AX12: 24100.56601
A13: Aylesbury Vale | B13: South East | C13: England | E13: 630.56 | F13: 743.84 | G13: 399.04 | H13: 0 | I13: 0 | J13: 7439.72 | K13: 9213.16 | M13: 10358.44 | N13: 22990.26 | O13: 847.71 | P13: 6410.09 | Q13: 0 | R13: 22418.25 | S13: 63024.75 | U13: 11754.3 | V13: 11743.85 | W13: 2509.98 | X13: 237.51 | Y13: 0 | Z13: 21828.77 | AA13: 48074.41 | AC13: 0 | AD13: 100 | AE13: 0 | AF13: 0 | AG13: 0 | AH13: 81.77 | AI13: 181.77 | AK13: 20114.33 | AL13: 4338.62 | AM13: 7437.96 | AN13: 0 | AO13: 245.84 | AP13: 41268.33 | AQ13: 73405.08 | AS13: 193899.17 | AU13: 192659 | AV13: 43689.19975 | AW13: 89804.98609 | AX13: 30324.82849
A14: Babergh | B14: Eastern | C14: England | K14: 512.58 | S14: 50336.23 | AA14: 745 | AC14: 0 | AD14: 0 | AE14: 0 | AF14: 0 | AG14: 0 | AH14: 0 | AI14: 0 | AQ14: 37112.96 | AS14: 88706.77 | AU14: 83945 | AV14: 3551.810071 | AW14: 52506.86121 | AX14: 15323.06143
A15: Barking & Dagenham | B15: Greater London | C15: England | E15: 1161.96 | F15: 240 | G15: 2904.52 | H15: 11997.96 | I15: 0 | J15: 75205.58 | K15: 91510.02 | M15: 8910.99 | N15: 2604.35 | O15: 10220.47 | P15: 3933.85 | Q15: 0 | R15: 106231.21 | S15: 131900.87 | U15: 8373.03 | V15: 95.7 | W15: 6019.82 | X15: 966 | Y15: 0 | Z15: 79906.13 | AA15: 95360.68 | AC15: 0 | AD15: 0 | AE15: 0 | AF15: 0 | AG15: 0 | AH15: 913.16 | AI15: 913.16 | AK15: 196444.12 | AL15: 4707.05 | AM15: 11788.21 | AN15: 5484.35 | AO15: 0 | AP15: 193276.97 | AQ15: 411700.7 | AS15: 731385.43 | AU15: 749453 | AV15: 302781.0173 | AW15: 214734.8402 | AX15: 139631.2099
A16: Barnet | B16: Greater London | C16: England | AU16: 1263389 | AV16: 414549.498 | AW16: 165609.408 | AX16: 530972.7912
A17: Barnsley | B17: Yorks and Humberside | C17: England | AU17: 460985 | AV17: 33291.45038 | AW17: 330536.3436 | AX17: 49449.51858
A18: Barrow in Furness | B18: North West | C18: England | E18: 593 | F18: 0 | G18: 3820.13 | H18: 0 | I18: 0 | J18: 0 | K18: 4413.13 | M18: 0 | N18: 16138.69 | O18: 4609.28 | P18: 0 | Q18: 0 | R18: 2740.38 | S18: 23488.35 | U18: 1075 | V18: 5580.55 | W18: 7440.9 | X18: 0 | Y18: 0 | Z18: 6258.67 | AA18: 20355.12 | AC18: 0 | AD18: 0 | AE18: 0 | AF18: 0 | AG18: 0 | AH18: 0 | AI18: 0 | AK18: 10312 | AL18: 9826.12 | AM18: 7242.11 | AN18: 160.29 | AO18: 0 | AP18: 13810.31 | AQ18: 41350.83 | AS18: 89607.43 | AU18: 75698 | AV18: 7814.008316 | AW18: 34046.59763 | AX18: 20689.29625
A19: Basildon | B19: Eastern | C19: England | E19: 0 | F19: 0 | G19: 2142.57 | H19: 0 | I19: 0 | J19: 4847.2 | K19: 6989.77 | M19: 0 | N19: 140122.59 | O19: 4383.14 | P19: 4787.51 | Q19: 815.47 | R19: 20740.74 | S19: 170849.45 | U19: 0 | V19: 58811.57 | W19: 9896.31 | X19: 3922.47 | Y19: 604.38 | Z19: 33526.9 | AA19: 106761.63 | AC19: 0 | AD19: 61.94 | AE19: 956.67 | AF19: 0 | AG19: 0 | AH19: 0 | AI19: 1018.61 | AK19: 14412 | AL19: 5069.13 | AM19: 1130.98 | AN19: 1319.75 | AO19: 5157.82 | AP19: 158428.8 | AQ19: 185518.48 | AS19: 471137.94 | AU19: 363989 | AV19: 87013.85303 | AW19: 185554.0508 | AX19: 47381.33513
A20: Basingstoke and Deane | B20: South East | C20: England | E20: 0 | F20: 15.94 | G20: 7448.63 | H20: 0 | I20: 0 | J20: 0 | K20: 7464.57 | M20: 0 | N20: 155271.96 | O20: 0 | P20: 7781.32 | Q20: 0 | R20: 3533.36 | S20: 166586.64 | U20: 0 | V20: 0 | W20: 0 | X20: 0 | Y20: 1157.75 | Z20: 728.63 | AA20: 1886.38 | AC20: 0 | AD20: 47.06 | AE20: 0 | AF20: 0 | AG20: 0 | AH20: 631.43 | AI20: 678.49 | AK20: 17514.67 | AL20: 2382.85 | AM20: 1759.5 | AN20: 0 | AO20: 0 | AP20: 63268.1 | AQ20: 84925.12 | AS20: 261541.2 | AU20: 259417 | AV20: 31619.53331 | AW20: 173046.6927 | AX20: 23648.50431
A21: Bassetlaw | B21: East Midlands | C21: England | E21: 0 | F21: 0 | G21: 0 | H21: 0 | I21: 0 | J21: 1216.49 | K21: 1216.49 | M21: 1119.58 | N21: 18967.09 | O21: 12721.86 | P21: 35478.71 | Q21: 134.19 | R21: 32133.97 | S21: 100555.4 | U21: 3323.2 | V21: 13426.69 | W21: 5515.57 | X21: 3280.91 | Y21: 0 | Z21: 14539.74 | AA21: 40086.11 | AC21: 0 | AD21: 0 | AE21: 0 | AF21: 0 | AG21: 0 | AH21: 0 | AI21: 0 | AK21: 10400.28 | AL21: 0 | AM21: 261.36 | AN21: 0 | AO21: 0 | AP21: 3521.37 | AQ21: 14183.01 | AS21: 156041.01 | AU21: 156041 | AV21: 13546.16464 | AW21: 100311.9512 | AX21: 23172.87257
A22: Bath & North East Somerset | B22: South West | C22: England | E22: 0 | F22: 0 | G22: 473 | H22: 0 | I22: 0 | J22: 3903 | K22: 4376 | M22: 13034 | N22: 10691 | O22: 120 | P22: 4900 | Q22: 0 | R22: 39930 | S22: 68675 | U22: 0 | V22: 2105 | W22: 0 | X22: 0 | Y22: 0 | Z22: 5481 | AA22: 7586 | AC22: 0 | AD22: 0 | AE22: 0 | AF22: 0 | AG22: 0 | AH22: 0 | AI22: 0 | AK22: 7254 | AL22: 3437 | AM22: 1640 | AN22: 473 | AO22: 0 | AP22: 68178 | AQ22: 80982 | AS22: 161619 | AU22: 185742 | AV22: 11229.78383 | AW22: 108412.6487 | AX22: 33241.89214
A23: Bedford | B23: Eastern | C23: England | E23: 0 | F23: 0 | G23: 14342.47 | H23: 0 | I23: 0 | J23: 3808.56 | K23: 18151.03 | M23: 100.32 | N23: 27111.32 | O23: 29288.63 | P23: 10015.43 | Q23: 0 | R23: 52440.71 | S23: 118956.41 | U23: 10942.03 | V23: 19930.63 | W23: 15402.49 | X23: 2056.97 | Y23: 0 | Z23: 27113.49 | AA23: 75445.61 | AC23: 0 | AD23: 0 | AE23: 0 | AF23: 0 | AG23: 0 | AH23: 0.001 | AI23: 0.001 | AK23: 15810.8 | AL23: 8221.96 | AM23: 4047.22 | AN23: 980.35 | AO23: 0 | AP23: 18593.18 | AQ23: 47653.51 | AS23: 260206.561 | AU23: 254161 | AV23: 66586.82484 | AW23: 113712.3741 | AX23: 38485.02935
A24: Bexley | B24: Greater London | C24: England | K24: 106367.54 | S24: 70085.67 | AA24: 8636.81 | AC24: 0 | AD24: 0 | AE24: 0 | AF24: 0 | AG24: 0 | AH24: 0 | AI24: 0 | AQ24: 231502.58 | AS24: 416592.6 | AU24: 433043 | AV24: 138086.9826 | AW24: 163993.7209 | AX24: 72468.63488
A25: Birmingham | B25: West Midlands | C25: England | E25: 22761.11 | F25: 50618.21 | G25: 484.52 | H25: 0 | I25: 1800 | J25: 190375.28 | K25: 266039.12 | M25: 336933.01 | N25: 655766.13 | O25: 24964.81 | P25: 68941.53 | Q25: 14298.07 | R25: 1098514.11 | S25: 2199417.66 | U25: 49227.39 | V25: 42801.65 | W25: 7431.81 | X25: 2897.51 | Y25: 390 | Z25: 134490.6 | AA25: 237238.96 | AC25: 0 | AD25: 0 | AE25: 0 | AF25: 1838.34 | AG25: 195 | AH25: 0 | AI25: 2033.34 | AK25: 80148.88 | AL25: 83056.34 | AM25: 865 | AN25: 3536.64 | AO25: 2850.82 | AP25: 437362.71 | AQ25: 607820.39 | AS25: 3312549.47 | AU25: 3051683 | AV25: 823126.948 | AW25: 1407284.99 | AX25: 476320.7102
A26: Blaby | B26: East Midlands | C26: England | E26: 0 | F26: 0 | G26: 1465 | H26: 0 | I26: 0 | J26: 0 | K26: 1465 | M26: 0 | N26: 1965.02 | O26: 1180.55 | P26: 4151.74 | Q26: 0 | R26: 7141.85 | S26: 14439.16 | U26: 0 | V26: 0 | W26: 0 | X26: 0 | Y26: 0 | Z26: 2376.11 | AA26: 2376.11 | AC26: 0 | AD26: 0 | AE26: 0 | AF26: 0 | AG26: 0 | AH26: 0 | AI26: 0 | AK26: 1876.22 | AL26: 6438.85 | AM26: 7611.24 | AN26: 0 | AO26: 0 | AP26: 8034.67 | AQ26: 23960.98 | AS26: 42241.25 | AU26: 47062 | AV26: 5058.392835 | AW26: 20892.69904 | AX26: 12377.03247
A27: Blackburn with Darwen | B27: North West | C27: England | AU27: 296984 | AV27: 43764.93437 | AW27: 154624.8606 | AX27: 62140.05993
A28: Blackpool | B28: North West | C28: England | E28: 0 | F28: 0 | G28: 0 | H28: 0 | I28: 0 | J28: 0 | K28: 6957.08 | S28: 25517.08 | AA28: 5391.3 | AI28: 4756.89 | AQ28: 196432.83 | AS28: 239055.18 | AU28: 369724 | AV28: 85384.05434 | AW28: 58968.98456 | AX28: 167633.9777
A29: Blaenau Gwent | B29: Wales | C29: Wales | E29: 0 | F29: 0 | G29: 0 | H29: 0 | I29: 0 | J29: 0 | K29: 0 | S29: 50871.52 | AA29: 58115.33 | AC29: 0 | AD29: 0 | AE29: 0 | AF29: 0 | AG29: 0 | AH29: 0 | AI29: 0 | AQ29: 15461.94 | AS29: 124448.79 | AU29: 180566 | AV29: 15222.13659 | AW29: 130243.8741 | AX29: 17883.34905
A30: Bolsover | B30: East Midlands | C30: England | E30: 0 | F30: 0 | G30: 0 | H30: 0 | I30: 0 | J30: 0 | K30: 0 | S30: 42862.48 | AA30: 35547.64 | AI30: 9684.84 | AQ30: 6917.14 | AS30: 95012.1 | AU30: 123279 | AV30: 9393.971262 | AW30: 83090.87056 | AX30: 16466.71694
A31: Bolton | B31: North West | C31: England | E31: 257.25 | F31: 3557.66 | G31: 0 | H31: 0 | I31: 0 | J31: 0 | K31: 3814.91 | M31: 183131.72 | N31: 93756.61 | O31: 8559.16 | P31: 2722.97 | Q31: 0 | R31: 31715 | S31: 319885.46 | U31: 2626.11 | V31: 5511.09 | W31: 935.72 | X31: 0 | Y31: 0 | Z31: 2506.25 | AA31: 11579.17 | AC31: 0 | AD31: 0 | AE31: 0 | AF31: 0 | AG31: 0 | AH31: 0 | AI31: 0 | AK31: 118270.51 | AL31: 29041.62 | AM31: 15576.82 | AN31: 1564.24 | AO31: 0 | AP31: 57469.27 | AQ31: 221922.46 | AS31: 557202 | AU31: 586776 | AV31: 149931.9304 | AW31: 289286.9562 | AX31: 85328.01628
A32: Boston | B32: East Midlands | C32: England | AU32: 84208 | AV32: 5772.443479 | AW32: 44165.81036 | AX32: 21546.73298
A33: Bournemouth | B33: South West | C33: England | E33: 0 | F33: 0 | G33: 17766.83 | H33: 0 | I33: 0 | J33: 0 | K33: 17766.83 | M33: 0 | N33: 13108.18 | O33: 757.98 | P33: 33445.33 | Q33: 0 | R33: 20425.27 | S33: 67736.76 | U33: 0 | V33: 8129.51 | W33: 0 | X33: 0 | Y33: 0 | Z33: 4732.85 | AA33: 12862.36 | AC33: 83625.37 | AD33: 0 | AE33: 0 | AF33: 0 | AG33: 0 | AH33: 1932.45 | AI33: 85557.82 | AK33: 0 | AL33: 14880.27 | AM33: 2567.7 | AN33: 0 | AO33: 0 | AP33: 163925.09 | AQ33: 181373.06 | AS33: 365296.83 | AU33: 340296 | AV33: 73979.25682 | AW33: 60182.54645 | AX33: 146826.6783
A34: Bracknell Forest | B34: South East | C34: England | AU34: 126547 | AV34: 19642.60582 | AW34: 63739.65133 | AX34: 22508.72601
A35: Bradford | B35: Yorks and Humberside | C35: England | E35: 500 | F35: 0 | G35: 2707.39 | H35: 12107.69 | I35: 0 | J35: 34729.28 | K35: 50044.36 | M35: 27085.33 | N35: 282715.78 | O35: 31828.59 | P35: 43084.72 | Q35: 2444.29 | R35: 212013.84 | S35: 599172.55 | U35: 8435.54 | V35: 18613.89 | W35: 18310.5 | X35: 146.88 | Y35: 0 | Z35: 40456.2 | AA35: 85963.01 | AC35: 0 | AD35: 334.29 | AE35: 0 | AF35: 0 | AG35: 0 | AH35: 0 | AI35: 334.29 | AK35: 147102.85 | AL35: 73263.24 | AM35: 35320.96 | AN35: 4076.67 | AO35: 247.92 | AP35: 190912.61 | AQ35: 450924.25 | AS35: 1186438.46 | AU35: 890006 | AV35: 216555.3799 | AW35: 328790.1299 | AX35: 232546.5047
A36: Braintree | B36: Eastern | C36: England | AU36: 162654 | AV36: 21338.85215 | AW36: 86279.75127 | AX36: 27763.25012
A37: Breckland | B37: Eastern | C37: England | E37: 0 | F37: 0 | G37: 0 | H37: 0 | I37: 0 | J37: 877.19 | K37: 877.19 | M37: 19914.8 | N37: 6391.91 | O37: 1276.88 | P37: 3835.62 | Q37: 0 | R37: 24267.42 | S37: 55686.63 | U37: 1894.71 | V37: 7834.03 | W37: 4324.84 | X37: 386.6 | Y37: 0 | Z37: 9056.19 | AA37: 23496.37 | AC37: 0 | AD37: 0 | AE37: 0 | AF37: 0 | AG37: 0 | AH37: 0 | AI37: 0 | AK37: 8107.64 | AL37: 1223.27 | AM37: 8052.5 | AN37: 766.5 | AO37: 0 | AP37: 24557.71 | AQ37: 42707.62 | AS37: 122767.81 | AU37: 187775 | AV37: 25600.26558 | AW37: 112828.9954 | AX37: 27089.19513
A38: Brent | B38: Greater London | C38: England | E38: 110569.96 | F38: 173995.56 | G38: 35583.39 | H38: 135.23 | I38: 0 | J38: 833470.68 | K38: 1153754.82 | M38: 61196.16 | N38: 71515.2 | O38: 880.47 | P38: 29351.94 | Q38: 2336.22 | R38: 394476.21 | S38: 559756.2 | U38: 10009.37 | V38: 10886.06 | W38: 1347.03 | X38: 0 | Y38: 0 | Z38: 44532.78 | AA38: 66775.24 | AC38: 0 | AD38: 0 | AE38: 0 | AF38: 0 | AG38: 0 | AH38: 578.57 | AI38: 578.57 | AK38: 250997.74 | AL38: 32645.41 | AM38: 22016.56 | AN38: 3664.31 | AO38: 0 | AP38: 561435.82 | AQ38: 870759.84 | AS38: 2651624.67 | AU38: 2606875 | AV38: 1170258.633 | AW38: 232716.1936 | AX38: 984194.0023
A39: Brentwood | B39: Eastern | C39: England | E39: 0 | F39: 2270.87 | G39: 0 | H39: 0 | I39: 0 | J39: 0 | K39: 2270.87 | M39: 0 | N39: 2983.88 | O39: 0 | P39: 0 | Q39: 0 | R39: 0 | S39: 2983.88 | U39: 0 | V39: 11080.71 | W39: 2426.74 | X39: 536.97 | Y39: 0 | Z39: 8477.15 | AA39: 22521.57 | AC39: 0 | AD39: 0 | AE39: 0 | AF39: 0 | AG39: 0 | AH39: 0 | AI39: 0 | AK39: 0 | AL39: 14206.1 | AM39: 29.1 | AN39: 0 | AO39: 0 | AP39: 14410.9 | AQ39: 28646.1 | AS39: 56422.42 | AU39: 58426 | AV39: 9680.69026 | AW39: 23291.70219 | AX39: 15133.13426
A40: Bridgend | B40: Wales | C40: Wales | E40: 0 | F40: 0 | G40: 3512.82 | H40: 0 | I40: 0 | J40: 2488.75 | K40: 6001.57 | M40: 3410.75 | N40: 27592.29 | O40: 9114.81 | P40: 2849.54 | Q40: 793.08 | R40: 82649.33 | S40: 126409.8 | U40: 6528.91 | V40: 15543.12 | W40: 5691.45 | X40: 822.02 | Y40: 374.5 | Z40: 36388.27 | AA40: 65348.27 | AC40: 0 | AD40: 0 | AE40: 6098.36 | AF40: 0 | AG40: 0 | AH40: 84.02 | AI40: 6182.38 | AK40: 20669.65 | AL40: 3872.73 | AM40: 4770.85 | AN40: 929.72 | AO40: 0 | AP40: 22183.06 | AQ40: 52426.01 | AS40: 256368.03 | AU40: 252060 | AV40: 32921.93343 | AW40: 135980.1725 | AX40: 53013.77932
A41: Brighton and Hove | B41: South East | C41: England | E41: 5296.03 | F41: 5065.59 | G41: 71436.16 | H41: 1547.61 | I41: 0 | J41: 67729.72 | K41: 151075.11 | M41: 23352.99 | N41: 27854.44 | O41: 1459.65 | P41: 25494.62 | Q41: 1904.76 | R41: 46141.08 | S41: 126207.54 | U41: 49926.55 | V41: 20284.43 | W41: 4437.35 | X41: 2486 | Y41: 0 | Z41: 39832.22 | AA41: 116966.55 | AC41: 4127.93 | AD41: 2188 | AE41: 394.29 | AF41: 0 | AG41: 0 | AH41: 4862.8 | AI41: 11573.02 | AK41: 134768.49 | AL41: 14280.36 | AM41: 5115.36 | AN41: 3307.21 | AO41: 0 | AP41: 66898.29 | AQ41: 224369.71 | AS41: 630191.93 | AU41: 611084 | AV41: 171954.3562 | AW41: 145880.1223 | AX41: 191661.9223
A42: Bristol | B42: South West | C42: England | E42: 0 | F42: 10829.38 | G42: 8181.86 | H42: 134.86 | I42: 0 | J42: 32514.16 | K42: 51660.26 | M42: 15922.07 | N42: 279404.71 | O42: 101423.36 | P42: 31244.63 | Q42: 0 | R42: 285667.84 | S42: 713662.61 | U42: 5798.93 | V42: 119295.78 | W42: 38696.59 | X42: 2796.21 | Y42: 0 | Z42: 64823.28 | AA42: 231410.79 | AC42: 0 | AD42: 1126.6 | AE42: 0 | AF42: 0 | AG42: 0 | AH42: 1420.18 | AI42: 2546.78 | AK42: 3629.17 | AL42: 20118.25 | AM42: 17115.07 | AN42: 405.26 | AO42: 0 | AP42: 60905.41 | AQ42: 102173.16 | AS42: 1101453.6 | AU42: 945862 | AV42: 193695.9492 | AW42: 429190.0362 | AX42: 201546.6089
A43: Broadland | B43: Eastern | C43: England | E43: 0 | F43: 1237.84 | G43: 0 | H43: 0 | I43: 0 | J43: 727.41 | K43: 1965.25 | M43: 0 | N43: 9045.85 | O43: 5613.7 | P43: 3037.71 | Q43: 0 | R43: 9128.53 | S43: 26825.79 | U43: 0 | V43: 9302.8 | W43: 3316.74 | X43: 280.8 | Y43: 0 | Z43: 1519.25 | AA43: 14419.59 | AC43: 0 | AD43: 0 | AE43: 0 | AF43: 0 | AG43: 0 | AH43: 0 | AI43: 0 | AK43: 1080 | AL43: 10822.06 | AM43: 9353.75 | AN43: 0 | AO43: 0 | AP43: 7762.76 | AQ43: 29018.57 | AS43: 72229.2 | AU43: 76039 | AV43: 2251.895197 | AW43: 45016.30353 | AX43: 15737.9424
A44: Bromley | B44: Greater London | C44: England | E44: 1455.99 | F44: 5025.96 | G44: 3162.69 | H44: 0 | I44: 0 | J44: 42933.96 | K44: 52578.6 | M44: 5357.71 | N44: 0 | O44: 161.28 | P44: 21422.32 | Q44: 0 | R44: 282613.02 | S44: 309554.33 | U44: 1096.5 | V44: 0 | W44: 60 | X44: 4632.11 | Y44: 0 | Z44: 31969.06 | AA44: 37757.67 | AC44: 0 | AD44: 0 | AE44: 0 | AF44: 0 | AG44: 0 | AH44: 0 | AI44: 0 | AK44: 4154.46 | AL44: 4242.95 | AM44: 0 | AN44: 9283.14 | AO44: 0 | AP44: 91903.99 | AQ44: 109584.54 | AS44: 509475.14 | AU44: 509406 | AV44: 95874.80425 | AW44: 232173.6996 | AX44: 102065.9713
A45: Bromsgrove | B45: West Midlands | C45: England | AU45: 57774 | AV45: 5172.32178 | AW45: 31095.96124 | AX45: 11671.63325
A46: Broxbourne | B46: Eastern | C46: England | E46: 5206 | F46: 0 | G46: 0 | H46: 0 | I46: 0 | J46: 12216 | K46: 17422 | M46: 23775 | N46: 158 | O46: 0 | P46: 0 | Q46: 0 | R46: 2046 | S46: 25979 | U46: 6664 | V46: 615 | W46: 0 | X46: 0 | Y46: 0 | Z46: 4420 | AA46: 11699 | AC46: 0 | AD46: 0 | AE46: 0 | AF46: 0 | AG46: 0 | AH46: 0 | AI46: 0 | AK46: 4257 | AL46: 26252 | AM46: 0 | AN46: 367 | AO46: 0 | AP46: 55132 | AQ46: 86008 | AS46: 141108 | AU46: 141108 | AV46: 41801.72021 | AW46: 45977.24833 | AX46: 30997.43782
A47: Broxtowe | B47: East Midlands | C47: England | E47: 0 | F47: 1696.31 | G47: 0 | H47: 0 | I47: 0 | J47: 0 | K47: 1696.31 | M47: 0 | N47: 21501.5 | O47: 7308.43 | P47: 811.21 | Q47: 0 | R47: 23518.57 | S47: 53139.71 | U47: 482.98 | V47: 7570.15 | W47: 3847.48 | X47: 1246.96 | Y47: 0 | Z47: 2878.45 | AA47: 16026.02 | AC47: 0 | AD47: 0 | AE47: 0 | AF47: 0 | AG47: 0 | AH47: 0 | AI47: 0 | AK47: 816.24 | AL47: 2561.16 | AM47: 3259.34 | AN47: 0 | AO47: 0 | AP47: 7324.95 | AQ47: 13961.69 | AS47: 84823.73 | AU47: 89873 | AV47: 9705.019518 | AW47: 44097.38347 | AX47: 21775.54003
A48: Burnley | B48: North West | C48: England | E48: 0 | F48: 0 | G48: 0 | H48: 0 | I48: 0 | J48: 591.06 | K48: 591.06 | M48: 2240.07 | N48: 19267.92 | O48: 14450.09 | P48: 7896.73 | Q48: 0 | R48: 31863.34 | S48: 75718.15 | U48: 5571.37 | V48: 2563.4 | W48: 9309.87 | X48: 0 | Y48: 0 | Z48: 10851.9 | AA48: 28296.54 | AC48: 0 | AD48: 0 | AE48: 0 | AF48: 0 | AG48: 0 | AH48: 0 | AI48: 0 | AK48: 13450.54 | AL48: 8409.58 | AM48: 5174.88 | AN48: 813.71 | AO48: 0 | AP48: 22672.61 | AQ48: 50521.32 | AS48: 155127.07 | AU48: 155940 | AV48: 31343.1477 | AW48: 68582.9631 | AX48: 33311.78323
A49: Bury | B49: North West | C49: England | E49: 0 | F49: 0 | G49: 1629.14 | H49: 0 | I49: 0 | J49: 0 | K49: 1629.14 | M49: 0 | N49: 104414.48 | O49: 5666.65 | P49: 22292.92 | Q49: 0 | R49: 1744.92 | S49: 134118.97 | U49: 0 | V49: 672.49 | W49: 63881.39 | X49: 13001.14 | Y49: 0 | Z49: 10771.63 | AA49: 88326.65 | AC49: 0 | AD49: 484.64 | AE49: 1936.34 | AF49: 723.73 | AG49: 0 | AH49: 0 | AI49: 3144.71 | AK49: 0 | AL49: 330.59 | AM49: 20335.15 | AN49: 185 | AO49: 0 | AP49: 5487.23 | AQ49: 26337.97 | AS49: 253557.44 | AU49: 250465 | AV49: 24675.36137 | AW49: 120740.6597 | AX49: 69950.93564
A50: Caerphilly | B50: Wales | C50: Wales | E50: 0 | F50: 1964.65 | G50: 1957.79 | H50: 0 | I50: 0 | J50: 8165.03 | K50: 12087.47 | M50: 463.87 | N50: 53114.91 | O50: 64056.13 | P50: 0 | Q50: 280 | R50: 123459.22 | S50: 241374.13 | U50: 0 | V50: 2495.53 | W50: 6860.75 | X50: 0 | Y50: 0 | Z50: 8671.53 | AA50: 18027.81 | AC50: 0 | AD50: 564.76 | AE50: 8699.8 | AF50: 0 | AG50: 0 | AH50: 502.7 | AI50: 9767.26 | AK50: 890 | AL50: 27667.47 | AM50: 17106.69 | AN50: 0 | AO50: 347.75 | AP50: 56819.16 | AQ50: 102831.07 | AS50: 384087.74 | AU50: 381973 | AV50: 31288.73388 | AW50: 276906.4533 | AX50: 36456.26335
A51: Calderdale | B51: Yorks and Humberside | C51: England | E51: 0 | F51: 0 | G51: 0 | H51: 0 | I51: 0 | J51: 2983.64 | K51: 2983.64 | M51: 630 | N51: 18504.34 | O51: 1953.65 | P51: 0 | Q51: 0 | R51: 19528.69 | S51: 40616.68 | U51: 9679.43 | V51: 8245.91 | W51: 3039.95 | X51: 1314.83 | Y51: 0 | Z51: 14302.24 | AA51: 36582.36 | AC51: 0 | AD51: 0 | AE51: 0 | AF51: 0 | AG51: 0 | AH51: 278.96 | AI51: 278.96 | AK51: 11548.33 | AL51: 1430.57 | AM51: 3708.04 | AN51: 0 | AO51: 0 | AP51: 3739.22 | AQ51: 20426.16 | AS51: 100887.8 | AU51: 278211 | AV51: 40314.2346 | AW51: 119993.1193 | AX51: 74190.96971
A52: Cambridge | B52: Eastern | C52: England | AU52: 149334 | AV52: 12196.54483 | AW52: 91831.46886 | AX52: 22522.78419
A53: Camden | B53: Inner London | C53: England | E53: 0 | F53: 131780 | G53: 96874 | H53: 0 | I53: 0 | J53: 0 | K53: 228654 | M53: 0 | N53: 114518 | O53: 0 | P53: 171777 | Q53: 0 | R53: 0 | S53: 286295 | U53: 0 | V53: 93110 | W53: 0 | X53: 0 | Y53: 0 | Z53: 0 | AA53: 93110 | AC53: 0 | AD53: 0 | AE53: 0 | AF53: 0 | AG53: 0 | AH53: 0 | AI53: 0 | AK53: 0 | AL53: 0 | AM53: 0 | AN53: 0 | AO53: 0 | AP53: 248497 | AQ53: 248497 | AS53: 856556 | AU53: 889647 | AV53: 226503.2996 | AW53: 256033.4387 | AX53: 286355.4905
A54: Cannock Chase | B54: West Midlands | C54: England | E54: 0 | F54: 0 | G54: 0 | H54: 0 | I54: 0 | J54: 0 | K54: 0 | M54: 0 | N54: 0 | O54: 32309 | P54: 32708 | Q54: 0 | R54: 0 | S54: 65017 | U54: 0 | V54: 723 | W54: 14947 | X54: 0 | Y54: 0 | Z54: 0 | AA54: 15670 | AC54: 0 | AD54: 0 | AE54: 0 | AF54: 0 | AG54: 0 | AH54: 0 | AI54: 0 | AK54: 0 | AL54: 0 | AM54: 0 | AN54: 0 | AO54: 0 | AP54: 0 | AQ54: 0 | AS54: 80687 | AU54: 93570 | AV54: 9724.378283 | AW54: 51698.39278 | AX54: 14430.48082
A55: Canterbury | B55: South East | C55: England | E55: 0 | F55: 0 | G55: 0 | H55: 0 | I55: 0 | J55: 5667 | K55: 5667 | M55: 606 | N55: 23966 | O55: 2390 | P55: 14381 | Q55: 0 | R55: 8994 | S55: 50337 | U55: 0 | V55: 0 | W55: 1214 | X55: 0 | Y55: 0 | Z55: 6123 | AA55: 7337 | AC55: 0 | AD55: 0 | AE55: 0 | AF55: 0 | AG55: 0 | AH55: 0 | AI55: 0 | AK55: 48216 | AL55: 5298 | AM55: 2687 | AN55: 420 | AO55: 1207 | AP55: 36315 | AQ55: 94143 | AS55: 157484 | AU55: 159534 | AV55: 25252.72344 | AW55: 64587.0981 | AX55: 40966.52313
A56: Cardiff | B56: Wales | C56: Wales | E56: 1519.74 | F56: 29391.24 | G56: 22718.89 | H56: 0 | I56: 0 | J56: 29652.27 | K56: 83282.14 | M56: 38895.67 | N56: 197657.69 | O56: 1092.31 | P56: 2125.14 | Q56: 4113.64 | R56: 158226.93 | S56: 402111.38 | U56: 1650.89 | V56: 12680.21 | W56: 4903.52 | X56: 3498.69 | Y56: 0 | Z56: 30507.99 | AA56: 53241.3 | AC56: 551.5 | AD56: 0 | AE56: 0 | AF56: 0 | AG56: 0 | AH56: 0 | AI56: 551.5 | AK56: 48337.43 | AL56: 13478.46 | AM56: 19904.84 | AN56: 208.72 | AO56: 0 | AP56: 196066.18 | AQ56: 277995.63 | AS56: 817181.95 | AU56: 815034 | AV56: 200280.5451 | AW56: 360362.2673 | AX56: 160207.8053
A57: Carlisle | B57: North West | C57: England | E57: 0 | F57: 0 | G57: 0 | H57: 0 | I57: 0 | J57: 0 | K57: 0 | M57: 0 | N57: 70837.32 | O57: 20724.8 | P57: 32350.43 | Q57: 0 | R57: 1546.92 | S57: 125459.47 | U57: 0 | V57: 9520.96 | W57: 2582.7 | X57: 3303.85 | Y57: 0 | Z57: 747.04 | AA57: 16154.55 | AC57: 0 | AD57: 1728.25 | AE57: 0 | AF57: 0 | AG57: 0 | AH57: 200.7 | AI57: 1928.95 | AK57: 0 | AL57: 1838.04 | AM57: 3584.82 | AN57: 2142.28 | AO57: 0 | AP57: 513.1 | AQ57: 8078.24 | AS57: 151621.21 | AU57: 155375 | AV57: 11316.11345 | AW57: 106661.2014 | AX57: 18045.69458
A58: Carmarthenshire | B58: Wales | C58: Wales | E58: 0 | F58: 0 | G58: 0 | H58: 0 | I58: 0 | J58: 1082.79 | K58: 1082.79 | M58: 7875.03 | N58: 45441.68 | O58: 33548.3 | P58: 4981.44 | Q58: 0 | R58: 123100.96 | S58: 214947.41 | U58: 4835.15 | V58: 19224.37 | W58: 18073.21 | X58: 0 | Y58: 0 | Z58: 29429.24 | AA58: 71561.97 | AC58: 0 | AD58: 0 | AE58: 0 | AF58: 0 | AG58: 0 | AH58: 0 | AI58: 0 | AK58: 490.37 | AL58: 5611.9 | AM58: 4835.17 | AN58: 15115.78 | AO58: 0 | AP58: 0 | AQ58: 26053.22 | AS58: 313645.39 | AU58: 305603 | AV58: 36227.96567 | AW58: 190104.7517 | AX58: 48502.10811
A59: Castle Point | B59: Eastern | C59: England | E59: 0 | F59: 3201 | G59: 0 | H59: 0 | I59: 0 | J59: 0 | K59: 3201 | M59: 0 | N59: 12322 | O59: 0 | P59: 0 | Q59: 0 | R59: 0 | S59: 12322 | U59: 0 | V59: 16084 | W59: 0 | X59: 0 | Y59: 0 | Z59: 0 | AA59: 16084 | AC59: 0 | AD59: 22677 | AE59: 0 | AF59: 0 | AG59: 0 | AH59: 0 | AI59: 22677 | AK59: 0 | AL59: 0 | AM59: 0 | AN59: 0 | AO59: 0 | AP59: 724 | AQ59: 724 | AS59: 55008 | AU59: 85052 | AV59: 18581.79784 | AW59: 20863.87539 | AX59: 30115.72043
A60: Central Bedfordshire | B60: Eastern | C60: England | E60: 0 | F60: 0 | G60: 135.71 | H60: 0 | I60: 0 | J60: 3466 | K60: 3601.71 | M60: 2054.02 | N60: 29996.77 | O60: 1626.77 | P60: 64628.95 | Q60: 1540.44 | R60: 74454.47 | S60: 174301.42 | U60: 650 | V60: 4427.67 | W60: 1680.22 | X60: 2168.48 | Y60: 0 | Z60: 5551.75 | AA60: 14478.12 | AC60: 65 | AD60: 6618.3 | AE60: 2080.2 | AF60: 0 | AG60: 0 | AH60: 9290.56 | AI60: 18054.06 | AK60: 6394.67 | AL60: 11827.17 | AM60: 5855.27 | AN60: 0 | AO60: 0 | AP60: 28928.27 | AQ60: 53005.38 | AS60: 263440.69 | AU60: 254525 | AV60: 41364.57838 | AW60: 141512.3619 | AX60: 32762.50046
A61: Ceredigion | B61: Wales | C61: Wales | E61: 267.14 | F61: 0 | G61: 0 | H61: 0 | I61: 0 | J61: 0 | K61: 267.14 | M61: 94948.07 | N61: 877.26 | O61: 1902.87 | P61: 6410.96 | Q61: 0 | R61: 12131.45 | S61: 116270.61 | U61: 888.57 | V61: 2653.6 | W61: 913.56 | X61: 930 | Y61: 0 | Z61: 7720.93 | AA61: 13106.66 | AC61: 95178.54 | AD61: 300 | AE61: 1177.69 | AF61: 0 | AG61: 0 | AH61: 4845.94 | AI61: 101502.17 | AK61: 3477.15 | AL61: 0 | AM61: 1425 | AN61: 1384.87 | AO61: 0 | AP61: 3654.55 | AQ61: 9941.57 | AS61: 241088.15 | AU61: 225498 | AV61: 2389.63019 | AW61: 188721.4529 | AX61: 23777.68766
A62: Charnwood | B62: East Midlands | C62: England | E62: 0 | F62: 0 | G62: 0 | H62: 0 | I62: 0 | J62: 1276.75 | K62: 1276.75 | M62: 0 | N62: 0 | O62: 0 | P62: 0 | Q62: 0 | R62: 98371.65 | S62: 98371.65 | U62: 0 | V62: 0 | W62: 0 | X62: 0 | Y62: 0 | Z62: 10490.06 | AA62: 10490.06 | AC62: 0 | AD62: 0 | AE62: 0 | AF62: 0 | AG62: 0 | AH62: 0 | AI62: 0 | AK62: 0 | AL62: 0 | AM62: 0 | AN62: 0 | AO62: 0 | AP62: 15624.01 | AQ62: 15624.01 | AS62: 125762.47 | AU62: 137517 | AV62: 18982.18418 | AW62: 81513.30259 | AX62: 17189.94928
A63: Chelmsford | B63: Eastern | C63: England | E63: 0 | F63: 74.94 | G63: 2815 | H63: 0 | I63: 0 | J63: 5788.75 | K63: 8678.69 | M63: 13378.56 | N63: 14410.68 | O63: 9531.06 | P63: 5121.33 | Q63: 0 | R63: 35903.38 | S63: 78345.01 | U63: 6973.4 | V63: 6081.54 | W63: 5843.53 | X63: 640 | Y63: 0 | Z63: 20390.55 | AA63: 39929.02 | AC63: 3162.02 | AD63: 1287 | AE63: 2006.48 | AF63: 178.2 | AG63: 0 | AH63: 11206.49 | AI63: 17840.19 | AK63: 3149.35 | AL63: 9789.61 | AM63: 1627.65 | AN63: 162.84 | AO63: 0 | AP63: 65146.17 | AQ63: 79875.62 | AS63: 224668.53 | AU63: 174380 | AV63: 33508.84408 | AW63: 75784.0344 | AX63: 37191.58619
A64: Cheltenham | B64: South West | C64: England | E64: 0 | F64: 3595.04 | G64: 2713.68 | H64: 0 | I64: 0 | J64: 1451.24 | K64: 7759.96 | M64: 0 | N64: 23489.09 | O64: 10371.47 | P64: 14425.09 | Q64: 0 | R64: 20906.16 | S64: 69191.81 | U64: 0 | V64: 6376.38 | W64: 6735.23 | X64: 1943.53 | Y64: 0 | Z64: 5350.08 | AA64: 20405.22 | AC64: 0 | AD64: 0 | AE64: 0 | AF64: 0 | AG64: 0 | AH64: 2057.14 | AI64: 2057.14 | AK64: 0 | AL64: 0 | AM64: 0 | AN64: 0 | AO64: 0 | AP64: 526.72 | AQ64: 526.72 | AS64: 99940.85 | AU64: 142971 | AV64: 23470.80149 | AW64: 62653.49157 | AX64: 36137.09119
A65: Cherwell | B65: South East | C65: England | E65: 0 | F65: 0 | G65: 0 | H65: 0 | I65: 0 | J65: 2912.86 | K65: 2912.86 | M65: 4091.02 | N65: 11763.34 | O65: 4420.22 | P65: 7066.67 | Q65: 0 | R65: 16599.61 | S65: 43940.86 | U65: 0 | V65: 31876.31 | W65: 6623.33 | X65: 5087.14 | Y65: 0 | Z65: 12123.22 | AA65: 55710 | AC65: 0 | AD65: 0 | AE65: 0 | AF65: 0 | AG65: 0 | AH65: 0 | AI65: 0 | AK65: 21182.45 | AL65: 4630.01 | AM65: 0 | AN65: 0 | AO65: 0 | AP65: 32103.93 | AQ65: 57916.39 | AS65: 160480.11 | AU65: 159368 | AV65: 16665.01856 | AW65: 92222.65822 | AX65: 27289.75597
A66: Cheshire East | B66: North West | C66: England | E66: 0 | F66: 502.92 | G66: 0 | H66: 0 | I66: 0 | J66: 8465.9 | K66: 8968.82 | M66: 1417.34 | N66: 27248.88 | O66: 18005.68 | P66: 5079.82 | Q66: 0 | R66: 41907.98 | S66: 93659.7 | U66: 5346.27 | V66: 56875.75 | W66: 20229.97 | X66: 12851.09 | Y66: 0 | Z66: 141119.98 | AA66: 236423.06 | AC66: 0 | AD66: 0 | AE66: 0 | AF66: 0 | AG66: 0 | AH66: 0 | AI66: 0 | AK66: 3421.94 | AL66: 3563.89 | AM66: 388.28 | AN66: 0 | AO66: 0 | AP66: 11333.64 | AQ66: 18707.75 | AS66: 357759.33 | AU66: 372854 | AV66: 38539.7684 | AW66: 206725.7691 | AX66: 73675.16083
A67: Cheshire West and Chester | B67: North West | C67: England | E67: 453 | F67: 887 | G67: 0 | H67: 0 | I67: 0 | J67: 3703 | K67: 5043 | M67: 19072 | N67: 79698 | O67: 48157 | P67: 38718 | Q67: 281 | R67: 50200 | S67: 236126 | U67: 5711 | V67: 18257 | W67: 22286 | X67: 952 | Y67: 0 | Z67: 11737 | AA67: 58943 | AC67: 0 | AD67: 0 | AE67: 0 | AF67: 0 | AG67: 0 | AH67: 0 | AI67: 0 | AK67: 59167 | AL67: 17558 | AM67: 23935 | AN67: 13495 | AO67: 0 | AP67: 52981 | AQ67: 167136 | AS67: 467248 | AU67: 472924 | AV67: 30976.3776 | AW67: 320623.0364 | AX67: 61173.39054
A68: Chesterfield | B68: East Midlands | C68: England | K68: 1164.8 | S68: 95830.11 | AA68: 1125.96 | AI68: 3551.66 | AQ68: 74490.55 | AS68: 176163.08 | AU68: 173312 | AV68: 16905.04107 | AW68: 109413.0405 | AX68: 24218.82836
A69: Chichester | B69: South East | C69: England | K69: 1600.16 | S69: 55537.75 | AA69: 31343.89 | AC69: 0 | AD69: 0 | AE69: 0 | AF69: 0 | AG69: 0 | AH69: 0 | AI69: 0 | AQ69: 18136.81 | AS69: 106618.61 | AU69: 116154 | AV69: 12420.47864 | AW69: 59504.839 | AX69: 21952.4463
A70: Chiltern | B70: South East | C70: England | E70: 0 | F70: 144.22 | G70: 2038.9 | H70: 0 | I70: 0 | J70: 1482.85 | K70: 3665.97 | M70: 0 | N70: 16715.41 | O70: 2091.57 | P70: 9856.47 | Q70: 700 | R70: 6775.09 | S70: 36138.54 | U70: 0 | V70: 6590.8 | W70: 2228.11 | X70: 809.12 | Y70: 0 | Z70: 4677.84 | AA70: 14305.87 | AC70: 0 | AD70: 1742.85 | AE70: 0 | AF70: 0 | AG70: 0 | AH70: 639.36 | AI70: 2382.21 | AK70: 0 | AL70: 3289 | AM70: 0 | AN70: 0 | AO70: 0 | AP70: 1858.92 | AQ70: 5147.92 | AS70: 61640.51 | AU70: 65130 | AV70: 6143.922473 | AW70: 35069.56407 | AX70: 12170.41945
A71: Chorley | B71: North West | C71: England | E71: 39 | F71: 0 | G71: 0 | H71: 0 | I71: 0 | J71: 0 | K71: 39 | M71: 32230 | N71: 45 | O71: 1217 | P71: 3255 | Q71: 0 | R71: 12209 | S71: 48956 | U71: 3204 | V71: 0 | W71: 211 | X71: 406 | Y71: 0 | Z71: 2180 | AA71: 6001 | AC71: 2112 | AD71: 0 | AE71: 0 | AF71: 373 | AG71: 0 | AH71: 2419 | AI71: 4904 | AK71: 12699 | AL71: 0 | AM71: 2060 | AN71: 1223 | AO71: 0 | AP71: 9962 | AQ71: 25944 | AS71: 85844 | AU71: 114869 | AV71: 7033.248416 | AW71: 75385.3462 | AX71: 16474.70608
A72: Christchurch | B72: South West | C72: England | E72: 0 | F72: 385.2 | G72: 0 | H72: 0 | I72: 0 | J72: 351.96 | K72: 737.16 | M72: 2461.68 | N72: 1057.97 | O72: 60 | P72: 991.1 | Q72: 0 | R72: 2430.81 | S72: 7001.56 | U72: 0 | V72: 0 | W72: 0 | X72: 150 | Y72: 0 | Z72: 704.99 | AA72: 854.99 | AC72: 759.1 | AD72: 0 | AE72: 0 | AF72: 0 | AG72: 0 | AH72: 195.24 | AI72: 954.34 | AK72: 34003.16 | AL72: 1240.1 | AM72: 45 | AN72: 710.88 | AO72: 0 | AP72: 2102.41 | AQ72: 38101.55 | AS72: 47649.6 | AU72: 48223 | AV72: 4973.240432 | AW72: 21846.61368 | AX72: 11763.8744
A73: City of London | B73: Inner London | C73: England | E73: 0 | F73: 0 | G73: 3900 | H73: 0 | I73: 0 | J73: 0 | K73: 3900 | M73: 0 | N73: 1489.95 | O73: 0 | P73: 780 | Q73: 0 | R73: 7595.4 | S73: 9865.35 | U73: 0 | V73: 0 | W73: 900 | X73: 0 | Y73: 0 | Z73: 0 | AA73: 900 | AC73: 0 | AD73: 0 | AE73: 0 | AF73: 0 | AG73: 0 | AH73: 0 | AI73: 0 | AK73: 0 | AL73: 2130.72 | AM73: 1492.61 | AN73: 0 | AO73: 0 | AP73: 7628.93 | AQ73: 11252.26 | AS73: 25917.61 | AU73: 21562 | AV73: 5597.168179 | AW73: 9023.757529 | AX73: 3390.18845
A74: Clackmannanshire | B74: Scotland | C74: Scotland | AU74: 196236 | AV74: 93545.7356 | AW74: 81089.07147 | AX74: 8995.055409
A75: Colchester | B75: Eastern | C75: England | K75: 3103.82 | S75: 57970.34 | AA75: 3820.33 | AC75: 0 | AD75: 0 | AE75: 0 | AF75: 0 | AG75: 0 | AH75: 0 | AI75: 0 | AQ75: 114454.2 | AS75: 179348.69 | AU75: 239924 | AV75: 60993.71154 | AW75: 91950.98158 | AX75: 52147.11591
A76: Comhairle nan Eilean Siar | B76: Scotland | C76: Scotland | AU76: 103909 | AV76: 0 | AW76: 99624.43571 | AX76: 1160.152291
A77: Conwy | B77: Wales | C77: Wales | K77: 2219 | S77: 71738 | AA77: 4580 | AI77: 47225 | AQ77: 27074 | AS77: 152836 | AU77: 153656 | AV77: 15712.38422 | AW77: 63427.66844 | AX77: 52078.44809
A78: Copeland | B78: North West | C78: England | E78: 0 | F78: 0 | G78: 0 | H78: 0 | I78: 0 | J78: 0 | K78: 0 | M78: 19955.51 | N78: 72859.34 | O78: 14406.08 | P78: 3447.9 | Q78: 117.18 | R78: 27902.24 | S78: 138688.25 | U78: 627.36 | V78: 4589.17 | W78: 2186.7 | X78: 0 | Y78: 0 | Z78: 1066.74 | AA78: 8469.97 | AC78: 0 | AD78: 3319.94 | AE78: 1024.38 | AF78: 0 | AG78: 0 | AH78: 0 | AI78: 4344.32 | AK78: 0 | AL78: 5285.53 | AM78: 540.59 | AN78: 0 | AO78: 0 | AP78: 1429.72 | AQ78: 7255.84 | AS78: 158758.38 | AU78: 171252 | AV78: 734.7174327 | AW78: 149363.4105 | AX78: 7925.962015
A79: Corby | B79: East Midlands | C79: England | E79: 0 | F79: 0 | G79: 0 | H79: 0 | I79: 0 | J79: 0 | K79: 0 | M79: 790 | N79: 40050 | O79: 134 | P79: 0 | Q79: 0 | R79: 28622 | S79: 69596 | U79: 4858 | V79: 0 | W79: 391 | X79: 0 | Y79: 0 | Z79: 1784 | AA79: 7033 | AC79: 0 | AD79: 0 | AE79: 0 | AF79: 0 | AG79: 0 | AH79: 67 | AI79: 67 | AK79: 0 | AL79: 0 | AM79: 0 | AN79: 533 | AO79: 0 | AP79: 1886 | AQ79: 2419 | AS79: 79115 | AU79: 128675 | AV79: 14480.48663 | AW79: 88114.85745 | AX79: 12978.58167
A80: Cornwall | B80: South West | C80: England | E80: 0 | F80: 1745 | G80: 1942 | H80: 0 | I80: 0 | J80: 4695 | K80: 8382 | M80: 51922 | N80: 116749 | O80: 7615 | P80: 18654 | Q80: 274 | R80: 47188 | S80: 242402 | U80: 1253 | V80: 111492 | W80: 17539 | X80: 1413 | Y80: 0 | Z80: 44984 | AA80: 176681 | AC80: 0 | AD80: 1474 | AE80: 0 | AF80: 0 | AG80: 0 | AH80: 90 | AI80: 1564 | AK80: 159254 | AL80: 16221 | AM80: 603 | AN80: 0 | AO80: 0 | AP80: 16813 | AQ80: 192891 | AS80: 621920 | AU80: 664024 | AV80: 65768.65544 | AW80: 284101.4318 | AX80: 196196.6721
A81: Cotswold | B81: South West | C81: England | E81: 0 | F81: 0 | G81: 0 | H81: 524.16 | I81: 0 | J81: 941.33 | K81: 1465.49 | M81: 1286.02 | N81: 2957.24 | O81: 2264.69 | P81: 4923.65 | Q81: 0 | R81: 27530.84 | S81: 38962.44 | U81: 2421.79 | V81: 1506.1 | W81: 9675.03 | X81: 1896.71 | Y81: 0 | Z81: 13816.44 | AA81: 29316.07 | AC81: 0 | AD81: 0 | AE81: 0 | AF81: 0 | AG81: 0 | AH81: 0 | AI81: 0 | AK81: 157.14 | AL81: 0 | AM81: 175.71 | AN81: 106.56 | AO81: 0 | AP81: 10010.62 | AQ81: 10450.03 | AS81: 80194.03 | AU81: 79665 | AV81: 5599.130216 | AW81: 46846.17614 | AX81: 14369.42736
A82: Coventry | B82: West Midlands | C82: England | E82: 970.44 | F82: 0 | G82: 0 | H82: 0 | I82: 0 | J82: 7966.27 | K82: 8936.71 | M82: 20640.25 | N82: 3521.18 | O82: 361.24 | P82: 433.24 | Q82: 130.09 | R82: 57560.43 | S82: 82646.43 | U82: 1955.48 | V82: 3121.58 | W82: 54.8 | X82: 0 | Y82: 340.06 | Z82: 15389.75 | AA82: 20861.67 | AC82: 0 | AD82: 0 | AE82: 0 | AF82: 0 | AG82: 0 | AH82: 335.72 | AI82: 335.72 | AK82: 294393.54 | AL82: 3446.79 | AM82: 4397.42 | AN82: 2629.28 | AO82: 218.33 | AP82: 218014.13 | AQ82: 523099.49 | AS82: 635880.02 | AU82: 619313 | AV82: 118782.7627 | AW82: 288474.8164 | AX82: 129148.9961
A83: Craven | B83: Yorks and Humberside | C83: England | E83: 0 | F83: 0 | G83: 0 | H83: 0 | I83: 0 | J83: 0 | K83: 0 | M83: 6262.57 | N83: 15977.13 | O83: 3182.37 | P83: 6111.89 | Q83: 0 | R83: 25604.78 | S83: 57138.74 | U83: 887.76 | V83: 4277.79 | W83: 1099.23 | X83: 203.77 | Y83: 0 | Z83: 962.18 | AA83: 7430.73 | AC83: 0 | AD83: 0 | AE83: 0 | AF83: 0 | AG83: 0 | AH83: 0 | AI83: 0 | AK83: 8085.8 | AL83: 3091.72 | AM83: 3021.02 | AN83: 5576.34 | AO83: 0 | AP83: 34519.76 | AQ83: 54294.64 | AS83: 118864.11 | AU83: 125880 | AV83: 0 | AW83: 110241.2844 | AX83: 9226.00972
A84: Crawley | B84: South East | C84: England | E84: 12360.92 | F84: 0 | G84: 0 | H84: 0 | I84: 0 | J84: 0 | K84: 12360.92 | M84: 105565.7 | N84: 0 | O84: 0 | P84: 0 | Q84: 0 | R84: 0 | S84: 105565.7 | U84: 35181.64 | V84: 0 | W84: 0 | X84: 0 | Y84: 0 | Z84: 0 | AA84: 35181.64 | AC84: 366.3 | AD84: 0 | AE84: 0 | AF84: 0 | AG84: 0 | AH84: 0 | AI84: 366.3 | AK84: 84079.82 | AL84: 0 | AM84: 0 | AN84: 0 | AO84: 0 | AP84: 0 | AQ84: 84079.82 | AS84: 237554.38 | AU84: 196609 | AV84: 37974.57095 | AW84: 95770.23333 | AX84: 31765.35008
A85: Croydon | B85: Greater London | C85: England | AU85: 1201438 | AV85: 367372.189 | AW85: 309903.5261 | AX85: 364929.2669
A86: Dacorum | B86: Eastern | C86: England | E86: 0 | F86: 891 | G86: 17176.61 | H86: 0 | I86: 0 | J86: 28617.27 | K86: 46684.88 | M86: 1307.55 | N86: 49253.77 | O86: 2621.71 | P86: 9632 | Q86: 0 | R86: 63659.63 | S86: 126474.66 | U86: 0 | V86: 1385.68 | W86: 0 | X86: 0 | Y86: 0 | Z86: 1610.59 | AA86: 2996.27 | AC86: 0 | AD86: 0 | AE86: 0 | AF86: 0 | AG86: 0 | AH86: 0 | AI86: 0 | AK86: 4834.15 | AL86: 16115.29 | AM86: 3748.43 | AN86: 0 | AO86: 0 | AP86: 40366 | AQ86: 65063.87 | AS86: 241219.68 | AU86: 233999 | AV86: 47826.74324 | AW86: 130348.233 | AX86: 26828.67404
A87: Darlington | B87: North East | C87: England | E87: 0 | F87: 1575 | G87: 0 | H87: 0 | I87: 0 | J87: 1907 | K87: 3482 | M87: 37 | N87: 3377 | O87: 0 | P87: 1098 | Q87: 184 | R87: 44984 | S87: 49680 | U87: 0 | V87: 2592 | W87: 695 | X87: 0 | Y87: 0 | Z87: 54477 | AA87: 57764 | AC87: 0 | AD87: 0 | AE87: 0 | AF87: 0 | AG87: 0 | AH87: 0 | AI87: 0 | AK87: 0 | AL87: 1738 | AM87: 200 | AN87: 0 | AO87: 202 | AP87: 40849 | AQ87: 42989 | AS87: 153915 | AU87: 150935 | AV87: 14229.86911 | AW87: 69671.70059 | AX87: 43119.64149
A88: Dartford | B88: South East | C88: England | E88: 0 | F88: 0 | G88: 0 | H88: 0 | I88: 0 | J88: 0 | K88: 0 | M88: 0 | N88: 0 | O88: 0 | P88: 2106 | Q88: 0 | R88: 19583 | S88: 21689 | U88: 0 | V88: 300 | W88: 0 | X88: 5379 | Y88: 0 | Z88: 51074 | AA88: 56753 | AC88: 0 | AD88: 0 | AE88: 0 | AF88: 0 | AG88: 0 | AH88: 0 | AI88: 0 | AK88: 3633 | AL88: 0 | AM88: 0 | AN88: 0 | AO88: 0 | AP88: 17789 | AQ88: 21422 | AS88: 99864 | AU88: 101075 | AV88: 5983.166246 | AW88: 41541.21718 | AX88: 35295.35234
A89: Daventry | B89: East Midlands | C89: England | K89: 30 | S89: 65416.14 | U89: 0 | V89: 0 | W89: 0 | X89: 0 | Y89: 0 | Z89: 0 | AA89: 0 | AC89: 0 | AD89: 0 | AE89: 0 | AF89: 0 | AG89: 0 | AH89: 0 | AI89: 0 | AQ89: 8437.94 | AS89: 73884.08 | AU89: 88080 | AV89: 9952.759383 | AW89: 58550.45568 | AX89: 9688.996229
A90: Denbighshire | B90: Wales | C90: Wales | E90: 1722 | F90: 0 | G90: 0 | H90: 0 | I90: 0 | J90: 0 | K90: 1722 | M90: 0 | N90: 815 | O90: 1188 | P90: 0 | Q90: 0 | R90: 40129 | S90: 42132 | U90: 0 | V90: 1554 | W90: 1765 | X90: 0 | Y90: 0 | Z90: 53178 | AA90: 56497 | AC90: 0 | AD90: 0 | AE90: 0 | AF90: 0 | AG90: 0 | AH90: 260 | AI90: 260 | AK90: 12891 | AL90: 100 | AM90: 0 | AN90: 4367 | AO90: 0 | AP90: 12297 | AQ90: 29655 | AS90: 130266 | AU90: 158793 | AV90: 27182.45217 | AW90: 60633.25784 | AX90: 50511.87951
A91: Derby | B91: East Midlands | C91: England | E91: 0 | F91: 0 | G91: 0 | H91: 0 | I91: 0 | J91: 6411.88 | K91: 6411.88 | M91: 0 | N91: 26499.33 | O91: 6542.54 | P91: 37532.79 | Q91: 0 | R91: 295142.41 | S91: 365717.07 | U91: 0 | V91: 8053.13 | W91: 45.61 | X91: 3374.2 | Y91: 0 | Z91: 65756.3 | AA91: 77229.24 | AC91: 48134.52 | AD91: 1802.83 | AE91: 230.34 | AF91: 4160.33 | AG91: 0 | AH91: 48941.86 | AI91: 103269.88 | AK91: 70649.4 | AL91: 4793.61 | AM91: 0 | AN91: 151305.3 | AO91: 0 | AP91: 45885.4 | AQ91: 272633.71 | AS91: 825261.78 | AU91: 475669 | AV91: 108170.3665 | AW91: 223404.8244 | AX91: 86547.78551
A92: Derbyshire Dales | B92: East Midlands | C92: England | E92: 0 | F92: 0 | G92: 0 | H92: 0 | I92: 0 | J92: 0 | K92: 0 | S92: 40902 | AA92: 11623 | AI92: 11613 | AQ92: 4990 | AS92: 69128 | AU92: 63082 | AV92: 7623.821535 | AW92: 39683.84883 | AX92: 7065.437882
A93: Doncaster | B93: Yorks and Humberside | C93: England | E93: 0 | F93: 0 | G93: 3158.53 | H93: 0 | I93: 0 | J93: 8208.4 | K93: 11366.93 | M93: 0 | N93: 378.48 | O93: 102.48 | P93: 0 | Q93: 0 | R93: 2349.85 | S93: 2830.81 | U93: 4869.77 | V93: 46360.93 | W93: 28751.17 | X93: 0 | Y93: 350.46 | Z93: 92667.47 | AA93: 172999.8 | AC93: 2552.24 | AD93: 21755.82 | AE93: 15348.35 | AF93: 399.45 | AG93: 0 | AH93: 61524.96 | AI93: 101580.82 | AK93: 6684.74 | AL93: 71916.56 | AM93: 49482.02 | AN93: 66626.39 | AO93: 216 | AP93: 223146.87 | AQ93: 418072.58 | AS93: 706850.94 | AU93: 570107 | AV93: 57281.53765 | AW93: 345636.8154 | AX93: 108176.8729
A94: Dover | B94: South East | C94: England | E94: 1272 | F94: 0 | G94: 0 | H94: 0 | I94: 0 | J94: 1316 | K94: 2588 | M94: 0 | N94: 13234.4 | O94: 0 | P94: 5016.22 | Q94: 0 | R94: 12150.27 | S94: 31798 | U94: 517 | V94: 735 | W94: 533 | X94: 155 | Y94: 0 | Z94: 6230 | AA94: 8170 | AC94: 0 | AD94: 0 | AE94: 0 | AF94: 0 | AG94: 0 | AH94: 0 | AI94: 0 | AK94: 63572 | AL94: 10678 | AM94: 2442 | AN94: 2529 | AO94: 0 | AP94: 33519 | AQ94: 112740 | AS94: 155296 | AU94: 156875 | AV94: 28643.38487 | AW94: 61584.82909 | AX94: 41758.95248
A95: Dudley | B95: West Midlands | C95: England | E95: 0 | F95: 0 | G95: 0 | H95: 0 | I95: 0 | J95: 1471 | K95: 1471 | M95: 0 | N95: 292262 | O95: 29928 | P95: 279531 | Q95: 144 | R95: 225202 | S95: 827067 | U95: 0 | V95: 95153 | W95: 18919 | X95: 65391 | Y95: 0 | Z95: 69176 | AA95: 248639 | AC95: 0 | AD95: 3078 | AE95: 0 | AF95: 0 | AG95: 0 | AH95: 3774 | AI95: 6852 | AK95: 0 | AL95: 7192 | AM95: 544 | AN95: 5070 | AO95: 0 | AP95: 23072 | AQ95: 35878 | AS95: 1119907 | AU95: 569990 | AV95: 89097.01305 | AW95: 337936.8371 | AX95: 79759.17863
A96: Dumfries and Galloway | B96: Scotland | C96: Scotland | E96: 0 | F96: 0 | G96: 0 | H96: 0 | I96: 0 | J96: 8501.63 | K96: 8501.63 | M96: 0 | N96: 1495.58 | O96: 0 | P96: 0 | Q96: 86.08 | R96: 944661.58 | S96: 946243.24 | U96: 274.55 | V96: 14645.79 | W96: 409.01 | X96: 0 | Y96: 0 | Z96: 99679.11 | AA96: 115008.46 | AC96: 0 | AD96: 0 | AE96: 0 | AF96: 0 | AG96: 0 | AH96: 77.24 | AI96: 77.24 | AK96: 8125.56 | AL96: 2097.95 | AM96: 145.5 | AN96: 0 | AO96: 0 | AP96: 83227.06 | AQ96: 93596.07 | AS96: 1163426.64 | AU96: 688364 | AV96: 13373.50539 | AW96: 626269.241 | AX96: 21928.61253
A97: Dundee | B97: Scotland | C97: Scotland | E97: 5984.75 | F97: 49014.02 | G97: 0 | H97: 0 | I97: 0 | J97: 30732.52 | K97: 85731.29 | M97: 270085.97 | N97: 825607.28 | O97: 2152.42 | P97: 1691.49 | Q97: 1545.2 | R97: 710618.24 | S97: 1811700.6 | U97: 11956.97 | V97: 63531.75 | W97: 5730.65 | X97: 0 | Y97: 0 | Z97: 42366.52 | AA97: 123585.89 | AC97: 288.51 | AD97: 2875.45 | AE97: 854.83 | AF97: 0 | AG97: 0 | AH97: 1981.21 | AI97: 6000 | AK97: 10458.43 | AL97: 14170.1 | AM97: 598.87 | AN97: 45.82 | AO97: 0 | AP97: 57836.78 | AQ97: 83110 | AS97: 2110127.78 | AU97: 412411 | AV97: 41188.12586 | AW97: 270858.0159 | AX97: 52061.47234
A98: Durham | B98: North East | C98: England | E98: 0 | F98: 0 | G98: 0 | H98: 0 | I98: 0 | J98: 0 | K98: 0 | M98: 1708 | N98: 38910 | O98: 108601 | P98: 750 | Q98: 0 | R98: 535953 | S98: 685922 | U98: 3570 | V98: 42813 | W98: 56220 | X98: 0 | Y98: 0 | Z98: 189044 | AA98: 291647 | AC98: 0 | AD98: 399 | AE98: 458 | AF98: 0 | AG98: 0 | AH98: 1385 | AI98: 2242 | AK98: 0 | AL98: 1220 | AM98: 6133 | AN98: 0 | AO98: 0 | AP98: 5348 | AQ98: 12701 | AS98: 992512 | AU98: 981783 | AV98: 65315.42491 | AW98: 636225.9916 | AX98: 163281.7833
A99: Ealing | B99: Greater London | C99: England | E99: 103091 | F99: 346514 | G99: 359446 | H99: 0 | I99: 0 | J99: 78554 | K99: 887605 | M99: 30022 | N99: 83070 | O99: 5283 | P99: 6799 | Q99: 0 | R99: 42182 | S99: 167356 | U99: 13216 | V99: 67814 | W99: 11927 | X99: 1257 | Y99: 0 | Z99: 50468 | AA99: 144682 | AC99: 4710 | AD99: 3896 | AE99: 934 | AF99: 845 | AG99: 0 | AH99: 0 | AI99: 10385 | AK99: 132979 | AL99: 26370 | AM99: 5427 | AN99: 5623 | AO99: 0 | AP99: 519111 | AQ99: 689510 | AS99: 1899538 | AU99: 1904697 | AV99: 1001288.535 | AW99: 194268.6375 | AX99: 543500.6218
A100: East Ayrshire | B100: Scotland | C100: Scotland | E100: 0 | F100: 725.66 | G100: 0 | H100: 0 | I100: 0 | J100: 0 | K100: 725.66 | M100: 0 | N100: 1673411.61 | O100: 0 | P100: 0 | Q100: 0 | R100: 0 | S100: 1673411.61 | U100: 0 | V100: 9114.41 | W100: 0 | X100: 0 | Y100: 0 | Z100: 0 | AA100: 9114.41 | AC100: 0 | AD100: 0 | AE100: 0 | AF100: 0 | AG100: 0 | AH100: 0 | AI100: 0 | AK100: 0 | AL100: 92.1 | AM100: 0 | AN100: 0 | AO100: 0 | AP100: 1154.56 | AQ100: 1246.66 | AS100: 1684498.34 | AU100: 305931 | AV100: 14433.00533 | AW100: 236731.8993 | AX100: 26724.69194
A101: East Cambridgeshire | B101: Eastern | C101: England | E101: 0 | F101: 0 | G101: 0 | H101: 0 | I101: 0 | J101: 0 | K101: 0 | M101: 8377.66 | N101: 3834.96 | O101: 1626.03 | P101: 933.21 | Q101: 0 | R101: 10872.47 | S101: 25644.33 | U101: 2025.63 | V101: 0 | W101: 694.17 | X101: 0 | Y101: 0 | Z101: 1629.17 | AA101: 4348.97 | AC101: 734.47 | AD101: 0 | AE101: 374.4 | AF101: 0 | AG101: 0 | AH101: 0 | AI101: 1108.87 | AK101: 5023.21 | AL101: 1886.25 | AM101: 2606.43 | AN101: 481.17 | AO101: 0 | AP101: 11707.87 | AQ101: 21704.93 | AS101: 52807.1 | AU101: 77998 | AV101: 985.3349511 | AW101: 48931.79036 | AX101: 15405.32953
A102: East Devon | B102: South West | C102: England | E102: 0 | F102: 0 | G102: 0 | H102: 0 | I102: 0 | J102: 45.17 | K102: 45.17 | M102: 1796.86 | N102: 3804.19 | O102: 1696.02 | P102: 684.08 | Q102: 0 | R102: 12380.6 | S102: 20361.75 | U102: 149.03 | V102: 5645.44 | W102: 1563.97 | X102: 0 | Y102: 815.49 | Z102: 3228.62 | AA102: 11402.55 | AC102: 0 | AD102: 0 | AE102: 0 | AF102: 0 | AG102: 0 | AH102: 0 | AI102: 0 | AK102: 41723.24 | AL102: 4044.04 | AM102: 3846.93 | AN102: 0 | AO102: 0 | AP102: 28477.7 | AQ102: 78091.91 | AS102: 109901.38 | AU102: 101211 | AV102: 5286.51233 | AW102: 42112.22243 | AX102: 34519.98792
A103: East Dorset | B103: South West | C103: England | E103: 0 | F103: 0 | G103: 0 | H103: 0 | I103: 0 | J103: 160 | K103: 160 | M103: 2320.24 | N103: 2381.15 | O103: 0 | P103: 4164.59 | Q103: 0 | R103: 1476.97 | S103: 10342.95 | U103: 203 | V103: 72.57 | W103: 164.45 | X103: 0 | Y103: 0 | Z103: 396.48 | AA103: 836.5 | AC103: 0 | AD103: 63.66 | AE103: 0 | AF103: 0 | AG103: 0 | AH103: 0 | AI103: 63.66 | AK103: 27448.54 | AL103: 2931.45 | AM103: 178.97 | AN103: 538.61 | AO103: 0 | AP103: 4642.02 | AQ103: 35739.59 | AS103: 47142.7 | AU103: 64218 | AV103: 7336.317722 | AW103: 29715.55021 | AX103: 16295.11209
A104: East Dunbartonshire | B104: Scotland | C104: Scotland | AU104: 82691 | AV104: 4361.869722 | AW104: 54085.67899 | AX104: 12594.2223
A105: East Hampshire | B105: South East | C105: England | E105: 0 | F105: 361.88 | G105: 2723.87 | H105: 0 | I105: 0 | J105: 0 | K105: 3085.75 | M105: 0 | N105: 26699.03 | O105: 3822.84 | P105: 4596.44 | Q105: 0 | R105: 13743.04 | S105: 48861.35 | U105: 0 | V105: 22093.77 | W105: 3455.95 | X105: 0 | Y105: 0 | Z105: 863.04 | AA105: 26412.76 | AC105: 0 | AD105: 1792.06 | AE105: 0 | AF105: 0 | AG105: 0 | AH105: 1021.5 | AI105: 2813.56 | AK105: 200 | AL105: 2404.5 | AM105: 1639.32 | AN105: 0 | AO105: 0 | AP105: 2896.08 | AQ105: 7139.9 | AS105: 88313.32 | AU105: 87347 | AV105: 8090.393919 | AW105: 54079.74241 | AX105: 10308.2719
A106: East Hertfordshire | B106: Eastern | C106: England | E106: 0 | F106: 540.95 | G106: 4256.65 | H106: 0 | I106: 0 | J106: 3105.08 | K106: 7902.68 | M106: 0 | N106: 17928.79 | O106: 4001.88 | P106: 42981.74 | Q106: 0 | R106: 8909.13 | S106: 73821.54 | U106: 0 | V106: 7008.59 | W106: 1015.62 | X106: 7377.16 | Y106: 0 | Z106: 6212.2 | AA106: 21613.57 | AC106: 0 | AD106: 0 | AE106: 441.87 | AF106: 0 | AG106: 0 | AH106: 0 | AI106: 441.87 | AK106: 0 | AL106: 4672.8 | AM106: 4240.64 | AN106: 2660.58 | AO106: 0 | AP106: 9124.61 | AQ106: 20698.63 | AS106: 124478.29 | AU106: 124641 | AV106: 20812.11063 | AW106: 60500.15347 | AX106: 21927.33802
A107: East Lindsey | B107: East Midlands | C107: England | E107: 0 | F107: 0 | G107: 0 | H107: 0 | I107: 0 | J107: 1774 | K107: 1774 | M107: 250 | N107: 2590 | O107: 3499 | P107: 2308 | Q107: 24 | R107: 45433 | S107: 54104 | U107: 46 | V107: 0 | W107: 608 | X107: 0 | Y107: 0 | Z107: 1956 | AA107: 2610 | AC107: 0 | AD107: 0 | AE107: 0 | AF107: 0 | AG107: 0 | AH107: 508 | AI107: 508 | AK107: 56903 | AL107: 2315 | AM107: 8833 | AN107: 4384 | AO107: 0 | AP107: 54410 | AQ107: 126845 | AS107: 185841 | AU107: 185225 | AV107: 12603.73289 | AW107: 89209.92208 | AX107: 56361.01079
A108: East Lothian | B108: Scotland | C108: Scotland | E108: 3086.15 | F108: 1713.93 | G108: 6129.29 | H108: 0 | I108: 0 | J108: 271.4 | K108: 11200.77 | M108: 43227.57 | N108: 8879.31 | O108: 170257.95 | P108: 46583.25 | Q108: 1327.44 | R108: 98414.77 | S108: 368690.29 | U108: 1072.7 | V108: 6021.86 | W108: 11730.7 | X108: 7473.2 | Y108: 0 | Z108: 2762.46 | AA108: 29060.92 | AC108: 0 | AD108: 0 | AE108: 313.42 | AF108: 394.52 | AG108: 0 | AH108: 0 | AI108: 707.94 | AK108: 4514.51 | AL108: 5564.99 | AM108: 28076.06 | AN108: 9760.8 | AO108: 0 | AP108: 7783.41 | AQ108: 55699.77 | AS108: 465359.69 | AU108: 106448 | AV108: 11615.52029 | AW108: 60721.83786 | AX108: 18676.67366
A109: East Northamptonshire | B109: East Midlands | C109: England | E109: 0 | F109: 0 | G109: 0 | H109: 0 | I109: 0 | J109: 0 | K109: 0 | M109: 404.1 | N109: 29530.13 | O109: 0 | P109: 19103.15 | Q109: 347.22 | R109: 3104.54 | S109: 52489.14 | U109: 0 | V109: 6652.94 | W109: 0 | X109: 427.69 | Y109: 0 | Z109: 581.8 | AA109: 7662.43 | AC109: 0 | AD109: 0 | AE109: 0 | AF109: 0 | AG109: 0 | AH109: 0 | AI109: 0 | AK109: 1050.56 | AL109: 16990.6 | AM109: 0 | AN109: 3900 | AO109: 0 | AP109: 7647.27 | AQ109: 29588.43 | AS109: 89740 | AU109: 91995 | AV109: 10108.28351 | AW109: 59256.75245 | AX109: 10409.55606
A110: East Renfrewshire | B110: Scotland | C110: Scotland | E110: 0 | F110: 0 | G110: 0 | H110: 0 | I110: 0 | J110: 0 | K110: 0 | M110: 0 | N110: 0 | O110: 0 | P110: 0 | Q110: 0 | R110: 264756.89 | S110: 264756.89 | U110: 0 | V110: 0 | W110: 104.71 | X110: 0 | Y110: 0 | Z110: 11928.57 | AA110: 12033.28 | AC110: 0 | AD110: 0 | AE110: 0 | AF110: 0 | AG110: 0 | AH110: 1452.48 | AI110: 1452.48 | AK110: 740 | AL110: 0 | AM110: 0 | AN110: 0 | AO110: 0 | AP110: 13292.17 | AQ110: 14032.17 | AS110: 292274.82 | AU110: 59864 | AV110: 0 | AW110: 38680.8793 | AX110: 11360.45413
A111: East Riding of Yorkshire | B111: Yorks and Humberside | C111: England | E111: 0 | F111: 0 | G111: 0 | H111: 0 | I111: 0 | J111: 1689.24 | K111: 1689.24 | M111: 5056.82 | N111: 54384.35 | O111: 6763.54 | P111: 9400.18 | Q111: 0 | R111: 26628.71 | S111: 102233.6 | U111: 2166.23 | V111: 11838.56 | W111: 6231.71 | X111: 459.55 | Y111: 0 | Z111: 7228.39 | AA111: 27924.44 | AC111: 0 | AD111: 0 | AE111: 0 | AF111: 0 | AG111: 0 | AH111: 60.12 | AI111: 60.12 | AK111: 11666.37 | AL111: 53717.89 | AM111: 23169.98 | AN111: 4300.29 | AO111: 0 | AP111: 73015.87 | AQ111: 165870.4 | AS111: 297777.8 | AU111: 287614 | AV111: 21349.83956 | AW111: 134840.9741 | AX111: 89583.38967
A112: East Staffordshire | B112: West Midlands | C112: England | K112: 225.06 | S112: 76078.27 | AA112: 43620.9 | AC112: 0 | AD112: 0 | AE112: 0 | AF112: 0 | AG112: 0 | AH112: 0 | AI112: 0 | AQ112: 18317.18 | AS112: 138241.41 | AU112: 126551 | AV112: 13027.92528 | AW112: 70126.08328 | AX112: 25596.99876
A113: Eastbourne | B113: South East | C113: England | E113: 0 | F113: 0 | G113: 0 | H113: 0 | I113: 0 | J113: 5054.29 | K113: 5054.29 | M113: 0 | N113: 2149.32 | O113: 0 | P113: 3314.58 | Q113: 0 | R113: 19883.74 | S113: 25347.64 | V113: 675.3 | W113: 328.57 | X113: 130 | Y113: 0 | Z113: 16752.29 | AA113: 17886.16 | AC113: 1950 | AD113: 0 | AE113: 0 | AF113: 221.78 | AG113: 0 | AH113: 7165.44 | AI113: 9337.22 | AK113: 40533.07 | AL113: 6305.12 | AN113: 1442.56 | AO113: 0 | AP113: 56951.11 | AQ113: 105231.86 | AS113: 162857.17 | AU113: 162574 | AV113: 24477.32644 | AW113: 52279.39647 | AX113: 55182.90851
A114: Eastleigh | B114: South East | C114: England | E114: 0 | F114: 0 | G114: 0 | H114: 0 | I114: 0 | J114: 0 | K114: 0 | S114: 65518 | AA114: 29586 | AC114: 0 | AD114: 0 | AE114: 0 | AF114: 0 | AG114: 0 | AH114: 0 | AI114: 0 | AQ114: 30640 | AS114: 125744 | AU114: 134446 | AV114: 22029.09675 | AW114: 71237.08295 | AX114: 21869.64855
A115: Eden | B115: North West | C115: England | E115: 0 | F115: 0 | G115: 0 | H115: 0 | I115: 0 | J115: 0 | K115: 0 | M115: 354 | N115: 759.02 | O115: 0 | P115: 3089.9 | Q115: 0 | R115: 70847.27 | S115: 75050.19 | U115: 0 | V115: 1456.6 | W115: 0 | X115: 2147.47 | Y115: 0 | Z115: 17874 | AA115: 21478.07 | AC115: 0 | AD115: 0 | AE115: 0 | AF115: 0 | AG115: 0 | AH115: 771.29 | AI115: 771.29 | AK115: 10722.02 | AL115: 0 | AM115: 0 | AN115: 0 | AO115: 0 | AP115: 13881.91 | AQ115: 24603.93 | AS115: 121903.48 | AU115: 169040 | AV115: 1184.808707 | AW115: 156420.4026 | AX115: 5367.214022
A116: Edinburgh | B116: Scotland | C116: Scotland | E116: 720 | F116: 0 | G116: 256579.22 | H116: 0 | I116: 0 | J116: 13269.99 | K116: 270569.21 | M116: 4143.23 | N116: 100140.46 | O116: 1887.94 | P116: 0 | Q116: 2072.82 | R116: 3624302.2 | S116: 3732546.65 | U116: 8320 | V116: 13226.88 | W116: 3583.42 | X116: 0 | Y116: 0 | Z116: 113243.67 | AA116: 138373.97 | AC116: 0 | AD116: 5850.66 | AE116: 0 | AF116: 0 | AG116: 0 | AH116: 7259.21 | AI116: 13109.87 | AK116: 124.23 | AL116: 76167.86 | AM116: 34153.48 | AN116: 6159.49 | AO116: 9.29 | AP116: 294623.29 | AQ116: 411237.64 | AS116: 4565837.34 | AU116: 1343558 | AV116: 495760.2998 | AW116: 566912.1262 | AX116: 155275.5045
A117: Elmbridge | B117: South East | C117: England | E117: 0 | F117: 0 | G117: 14352.75 | H117: 995.38 | I117: 0 | J117: 7103.15 | K117: 22451.28 | M117: 0 | N117: 0 | O117: 675.82 | P117: 14829.95 | Q117: 0 | R117: 40185.36 | S117: 55691.13 | U117: 5400.42 | V117: 423.36 | W117: 581.99 | X117: 600.82 | Y117: 0 | Z117: 52918.34 | AA117: 59924.93 | AC117: 0 | AD117: 0 | AE117: 0 | AF117: 0 | AG117: 0 | AH117: 0 | AI117: 0 | AK117: 1523.08 | AL117: 0 | AM117: 0 | AN117: 0 | AO117: 0 | AP117: 5775 | AQ117: 7298.08 | AS117: 145365.42 | AU117: 137381 | AV117: 26810.31916 | AW117: 52619.81245 | AX117: 33848.37662
A118: Enfield | B118: Greater London | C118: England | AU118: 1626073 | AV118: 804639.7203 | AW118: 205292.4757 | AX118: 433896.0953
A119: Epping Forest | B119: Eastern | C119: England | K119: 770 | S119: 15652 | AA119: 9366 | AC119: 0 | AD119: 0 | AE119: 0 | AF119: 0 | AG119: 0 | AH119: 0 | AI119: 0 | AQ119: 34948 | AS119: 60736 | AU119: 123215 | AV119: 9808.222661 | AW119: 58589.3559 | AX119: 31189.97433
A120: Epsom and Ewell | B120: South East | C120: England | E120: 3000 | F120: 4036.65 | G120: 12419.05 | H120: 0 | I120: 0 | J120: 0 | K120: 19455.7 | M120: 1000 | N120: 25250.93 | O120: 0 | P120: 4623.12 | Q120: 0 | R120: 5324.6 | S120: 36198.65 | U120: 1400 | V120: 2718.77 | W120: 0 | X120: 0 | Y120: 0 | Z120: 4952.8 | AA120: 9071.57 | AC120: 0 | AD120: 2969.27 | AE120: 0 | AF120: 0 | AG120: 0 | AH120: 4445.85 | AI120: 7415.12 | AK120: 0 | AL120: 0 | AM120: 0 | AN120: 1049.88 | AO120: 0 | AP120: 4890.04 | AQ120: 5939.92 | AS120: 78080.96 | AU120: 77791 | AV120: 24072.88523 | AW120: 18925.50397 | AX120: 22081.42092
A121: Erewash | B121: East Midlands | C121: England | E121: 0 | F121: 121.68 | G121: 1304.35 | H121: 0 | I121: 0 | J121: 0 | K121: 1426.03 | M121: 0 | N121: 31756.97 | O121: 0 | P121: 18467.68 | Q121: 0 | R121: 3556.18 | S121: 53780.83 | U121: 0 | V121: 14362.89 | W121: 0 | X121: 0 | Y121: 0 | Z121: 0 | AA121: 14362.89 | AC121: 0 | AD121: 419.65 | AE121: 0 | AF121: 0 | AG121: 0 | AH121: 0 | AI121: 419.65 | AK121: 12559.1 | AL121: 1157.5 | AM121: 0 | AN121: 0 | AO121: 0 | AP121: 27246.99 | AQ121: 40963.59 | AS121: 110952.99 | AU121: 132345 | AV121: 7480.854444 | AW121: 77725.296 | AX121: 26720.81336
A122: Exeter | B122: South West | C122: England | E122: 924.36 | F122: 0 | G122: 1002.66 | H122: 0 | I122: 0 | J122: 0 | K122: 1927.02 | M122: 6041.43 | N122: 4812.08 | O122: 1924.15 | P122: 10073.98 | Q122: 1382.62 | R122: 4931.48 | S122: 29165.74 | U122: 262.62 | V122: 1991.07 | W122: 614.64 | X122: 786.13 | Y122: 0 | Z122: 1043.6 | AA122: 4698.06 | AC122: 0 | AD122: 0 | AE122: 2444.98 | AF122: 0 | AG122: 0 | AH122: 0 | AI122: 2444.98 | AK122: 52384.88 | AL122: 6225.4 | AM122: 5736.99 | AN122: 20800.2 | AO122: 0 | AP122: 19226.7 | AQ122: 104374.17 | AS122: 142609.97 | AU122: 145164 | AV122: 15259.6769 | AW122: 66850.02859 | AX122: 37437.70351
A123: Falkirk | B123: Scotland | C123: Scotland | K123: 0 | M123: 0 | N123: 1458612.21 | O123: 0 | P123: 0 | Q123: 0 | R123: 0 | S123: 1458612.21 | U123: 0 | V123: 31835.89 | W123: 0 | X123: 0 | Y123: 0 | Z123: 0 | AA123: 31835.89 | AC123: 0 | AD123: 0 | AE123: 0 | AF123: 0 | AG123: 0 | AH123: 0 | AI123: 0 | AK123: 0 | AL123: 4505.06 | AM123: 0 | AN123: 0 | AO123: 0 | AP123: 0 | AQ123: 4505.06 | AS123: 1494953.16 | AU123: 257649 | AV123: 9206.008123 | AW123: 197524.7734 | AX123: 24730.41803
A124: Fareham | B124: South East | C124: England | E124: 0 | F124: 866.3 | G124: 0 | H124: 0 | I124: 0 | J124: 0 | K124: 866.3 | M124: 2945.43 | N124: 5215.61 | O124: 1742.28 | P124: 790.73 | Q124: 0 | R124: 14062.61 | S124: 24756.66 | U124: 270.01 | V124: 4251.91 | W124: 0 | X124: 0 | Y124: 0 | Z124: 3213.19 | AA124: 7735.11 | AC124: 0 | AD124: 0 | AE124: 0 | AF124: 0 | AG124: 0 | AH124: 0 | AI124: 0 | AK124: 13512.17 | AL124: 3920.54 | AM124: 0 | AN124: 0 | AO124: 0 | AP124: 6307.62 | AQ124: 23740.33 | AS124: 57098.4 | AU124: 60382 | AV124: 6016.651677 | AW124: 29324.20462 | AX124: 12872.21416
A125: Fenland | B125: Eastern | C125: England | E125: 0 | F125: 0 | G125: 0 | H125: 0 | I125: 0 | J125: 209.72 | K125: 209.72 | M125: 3771.68 | N125: 2337.23 | O125: 1064.36 | P125: 0 | Q125: 0 | R125: 4225.89 | S125: 11399.16 | U125: 0 | V125: 50 | W125: 2661.94 | X125: 0 | Y125: 0 | Z125: 3358.59 | AA125: 6070.53 | AC125: 0 | AD125: 0 | AE125: 0 | AF125: 0 | AG125: 0 | AH125: 0 | AI125: 0 | AK125: 49478.68 | AL125: 1653.92 | AM125: 6766.51 | AN125: 346.95 | AO125: 440 | AP125: 24655.08 | AQ125: 83341.14 | AS125: 101020.55 | AU125: 118088 | AV125: 18510.5105 | AW125: 53394.06744 | AX125: 26980.36624
A126: Fife | B126: Scotland | C126: Scotland | E126: 0 | F126: 10131.08 | G126: 8841.78 | H126: 0 | I126: 0 | J126: 20112.72 | K126: 39085.58 | M126: 0 | N126: 205281.31 | O126: 306577.25 | P126: 84878.69 | Q126: 0 | R126: 2612349.62 | S126: 3209086.87 | U126: 0 | V126: 12974.13 | W126: 29880.04 | X126: 3494.07 | Y126: 0 | Z126: 85592.19 | AA126: 131940.43 | AC126: 0 | AD126: 3307.89 | AE126: 1684.4 | AF126: 2250 | AG126: 0 | AH126: 27445.6 | AI126: 34687.89 | AQ126: 235781.16 | AS126: 3650581.93 | AU126: 705090 | AV126: 87846.1491 | AW126: 475848.1165 | AX126: 69095.73937
A127: Flintshire | B127: Wales | C127: Wales | AU127: 208883 | AV127: 23517.75957 | AW127: 121141.3788 | AX127: 40492.09899
A128: Forest Heath | B128: Eastern | C128: England | E128: 0 | F128: 0 | G128: 0 | H128: 0 | I128: 0 | J128: 18.12 | K128: 18.12 | M128: 6164.18 | N128: 4486.83 | O128: 503 | P128: 1154.34 | Q128: 0 | R128: 9184.49 | S128: 21492.84 | U128: 551.57 | V128: 2665.92 | W128: 645.59 | X128: 35.15 | Y128: 0 | Z128: 4070.56 | AA128: 7968.79 | AC128: 0 | AD128: 0 | AE128: 923.08 | AF128: 0 | AG128: 0 | AH128: 0 | AI128: 923.08 | AK128: 12747.01 | AL128: 268.71 | AM128: 1455.45 | AN128: 0 | AO128: 0 | AP128: 17554.73 | AQ128: 32025.9 | AS128: 62428.73 | AU128: 65655 | AV128: 7958.806642 | AW128: 31823.73906 | AX128: 15441.34771
A129: Forest of Dean | B129: South West | C129: England | E129: 0 | F129: 0 | G129: 0 | H129: 0 | I129: 0 | J129: 321.83 | K129: 321.83 | M129: 0 | N129: 87.18 | O129: 0 | P129: 0 | Q129: 0 | R129: 34788.96 | S129: 34876.14 | U129: 0 | V129: 0 | W129: 0 | X129: 0 | Y129: 0 | Z129: 3463.36 | AA129: 3463.36 | AC129: 1600 | AD129: 8735.09 | AE129: 210.64 | AF129: 315.64 | AG129: 0 | AH129: 415.21 | AI129: 11276.58 | AK129: 0 | AL129: 0 | AM129: 0 | AN129: 357.25 | AO129: 0 | AP129: 1522.34 | AQ129: 1879.59 | AS129: 51817.5 | AU129: 87579 | AV129: 13417.84742 | AW129: 44008.80345 | AX129: 16267.85201
A130: Fylde | B130: North West | C130: England | K130: 0 | S130: 7643.23 | AA130: 718.49 | AI130: 2107.98 | AQ130: 24591.22 | AS130: 35060.92 | AU130: 67102 | AV130: 2345.02655 | AW130: 24356.22468 | AX130: 27931.03221
A131: Gateshead | B131: North East | C131: England | E131: 0 | F131: 0 | G131: 0 | H131: 0 | I131: 0 | J131: 647.27 | K131: 647.27 | M131: 1043.92 | N131: 0 | O131: 9486.55 | P131: 8418.46 | Q131: 1819 | R131: 693153.07 | S131: 713921 | U131: 164.58 | V131: 1105.33 | W131: 0 | X131: 0 | Y131: 0 | Z131: 90361.86 | AA131: 91631.77 | AC131: 0 | AD131: 0 | AE131: 0 | AF131: 0 | AG131: 0 | AH131: 764.56 | AI131: 764.56 | AK131: 616.56 | AL131: 0 | AM131: 1024 | AN131: 0 | AO131: 0 | AP131: 25920.98 | AQ131: 27561.54 | AS131: 834526.14 | AU131: 426183 | AV131: 19748.94822 | AW131: 291608.0026 | AX131: 61887.63518
A132: Gedling | B132: East Midlands | C132: England | E132: 0 | F132: 0 | G132: 0 | H132: 0 | I132: 0 | J132: 0 | K132: 0 | M132: 0 | N132: 23051.65 | O132: 53.68 | P132: 1453.48 | Q132: 0 | R132: 0 | S132: 24558.81 | U132: 0 | V132: 23462.36 | W132: 752.15 | X132: 0 | Y132: 0 | Z132: 0 | AA132: 24214.51 | AC132: 0 | AD132: 0 | AE132: 0 | AF132: 0 | AG132: 0 | AH132: 0 | AI132: 0 | AK132: 39257.01 | AL132: 3470.37 | AM132: 12111.03 | AN132: 0 | AO132: 0 | AP132: 29.1 | AQ132: 54867.51 | AS132: 103640.83 | AU132: 101831 | AV132: 2073.349835 | AW132: 50814.62352 | AX132: 32680.96645
A133: Glasgow | B133: Scotland | C133: Scotland | K133: 110321 | S133: 8102859 | AA133: 166501 | AC133: 0 | AD133: 0 | AE133: 0 | AF133: 0 | AG133: 0 | AH133: 0 | AI133: 0 | AQ133: 240499 | AS133: 8620180 | AU133: 1651754 | AV133: 131830.0468 | AW133: 1116190.814 | AX133: 185441.117
A134: Gloucester | B134: South West | C134: England | AU134: 185753 | AV134: 35045.90382 | AW134: 74971.03542 | AX134: 47557.03456
A135: Gosport | B135: South East | C135: England | K135: 2588.39 | S135: 12947.8 | AA135: 3088.16 | AC135: 0 | AD135: 0 | AE135: 0 | AF135: 0 | AG135: 0 | AH135: 0 | AI135: 0 | AQ135: 62347.65 | AS135: 80972 | AU135: 107916 | AV135: 14016.00708 | AW135: 55243.93695 | AX135: 19694.87636
A136: Gravesham | B136: South East | C136: England | E136: 0 | F136: 0 | G136: 582.9 | H136: 0 | I136: 0 | J136: 1358.95 | K136: 1941.85 | M136: 2676.54 | N136: 45083.34 | O136: 5708.37 | P136: 11367.6 | Q136: 0 | R136: 10285.56 | S136: 75121.41 | U136: 1960 | V136: 40236.21 | W136: 11448.49 | X136: 2621.88 | Y136: 0 | Z136: 13369.83 | AA136: 69636.41 | AC136: 0 | AD136: 0 | AE136: 0 | AF136: 0 | AG136: 0 | AH136: 0 | AI136: 0 | AK136: 4476.56 | AL136: 2033.86 | AM136: 2902.86 | AN136: 0 | AO136: 0 | AP136: 29633.96 | AQ136: 39047.24 | AS136: 185746.91 | AU136: 176894 | AV136: 24178.44281 | AW136: 83411.91455 | AX136: 45859.43135
A137: Great Yarmouth | B137: Eastern | C137: England | E137: 0 | F137: 1343.86 | G137: 0 | H137: 0 | I137: 0 | J137: 743.23 | K137: 2087.09 | M137: 0 | N137: 16694.43 | O137: 629.48 | P137: 5584.09 | Q137: 0 | R137: 56693.34 | S137: 79601.34 | U137: 0 | V137: 3451.08 | W137: 0 | X137: 0 | Y137: 0 | Z137: 9667.41 | AA137: 13118.49 | AC137: 0 | AD137: 0 | AE137: 0 | AF137: 0 | AG137: 0 | AH137: 1052.52 | AI137: 1052.52 | AK137: 0 | AL137: 8651.25 | AM137: 996.99 | AN137: 257.14 | AO137: 0 | AP137: 40654.46 | AQ137: 50559.84 | AS137: 146419.28 | AU137: 172367 | AV137: 23176.49595 | AW137: 68450.32741 | AX137: 54491.25814
A138: Greenwich | B138: Inner London | C138: England | K138: 83006.05 | S138: 872748.17 | AA138: 32508.72 | AI138: 807.6 | AQ138: 172766.04 | AS138: 1161836.58 | AU138: 729275 | AV138: 123702.1126 | AW138: 393137.1089 | AX138: 111896.6807
A139: Guildford | B139: South East | C139: England | E139: 2625 | F139: 0 | G139: 152 | H139: 0 | I139: 0 | J139: 6621 | K139: 9398 | M139: 12895 | N139: 0 | O139: 0 | P139: 2889 | Q139: 0 | R139: 9316 | S139: 25100 | U139: 4826 | V139: 0 | W139: 0 | X139: 0 | Y139: 0 | Z139: 2236 | AA139: 7062 | AC139: 1022 | AD139: 0 | AE139: 0 | AF139: 0 | AG139: 0 | AH139: 2869 | AI139: 3891 | AK139: 37929 | AL139: 0 | AM139: 7210 | AN139: 0 | AO139: 0 | AP139: 25647 | AQ139: 70786 | AS139: 116237 | AU139: 130900 | AV139: 20184.52042 | AW139: 57096.14985 | AX139: 30632.56362
A140: Gwynedd | B140: Wales | C140: Wales | F140: 0 | G140: 0 | H140: 0 | I140: 0 | J140: 1310.73 | K140: 1310.73 | M140: 1760.87 | N140: 7815.22 | O140: 19308.51 | P140: 8983.82 | Q140: 66.49 | R140: 380423.22 | S140: 418358.13 | U140: 888.2 | V140: 3312.97 | W140: 8966.78 | X140: 792.99 | Y140: 0 | Z140: 92363.84 | AA140: 106324.78 | AC140: 0 | AD140: 0 | AE140: 260.59 | AF140: 0 | AG140: 0 | AH140: 4137.5 | AI140: 4398.09 | AK140: 6257.92 | AL140: 1326.25 | AM140: 1705.76 | AN140: 0 | AO140: 0 | AP140: 18459.35 | AQ140: 27749.28 | AS140: 558141.01 | AU140: 620483 | AV140: 6591.5285 | AW140: 566514.6268 | AX140: 29478.55427
A141: Hackney | B141: Inner London | C141: England | E141: 111785.17 | F141: 118020.66 | G141: 282091.24 | H141: 0 | I141: 0 | J141: 105289.38 | K141: 617186.45 | M141: 651.6 | N141: 216765.46 | O141: 248.01 | P141: 1636.5 | Q141: 0 | R141: 352166.38 | S141: 571467.95 | U141: 552.8 | V141: 13188.08 | W141: 5249.84 | X141: 2951.03 | Y141: 0 | Z141: 56948.9 | AA141: 78890.65 | AC141: 350 | AD141: 0 | AE141: 0 | AF141: 0 | AG141: 0 | AH141: 0 | AI141: 350 | AK141: 41809.4 | AL141: 8327.78 | AM141: 1383.04 | AN141: 0 | AO141: 0 | AP141: 436659.85 | AQ141: 488180.07 | AS141: 1756075.12 | AU141: 1507187 | AV141: 372066.0354 | AW141: 552622.7005 | AX141: 396644.2598
A142: Halton | B142: North West | C142: England | K142: 1501.49 | S142: 264549.94 | AA142: 26172.12 | AI142: 47.52 | AQ142: 69109.73 | AS142: 361380.8 | AU142: 343725 | AV142: 30369.19257 | AW142: 243065.2145 | AX142: 35766.89281
A143: Hambleton | B143: Yorks and Humberside | C143: England | E143: 0 | F143: 0 | G143: 0 | H143: 0 | I143: 0 | J143: 0 | K143: 0 | M143: 525.05 | N143: 32.65 | O143: 0 | P143: 0 | Q143: 0 | R143: 46371.78 | S143: 46929.48 | U143: 838.9 | V143: 2718.49 | W143: 0 | X143: 0 | Y143: 0 | Z143: 11476.69 | AA143: 15034.08 | AC143: 0 | AD143: 0 | AE143: 0 | AF143: 0 | AG143: 79.3 | AH143: 1346.81 | AI143: 1426.11 | AK143: 5470.99 | AL143: 0 | AM143: 0 | AN143: 0 | AO143: 0 | AP143: 4564.92 | AQ143: 10035.91 | AS143: 73425.58 | AU143: 78920 | AV143: 2070.210576 | AW143: 54808.37947 | AX143: 10553.41908
A144: Hammersmith and Fulham | B144: Inner London | C144: England | AU144: 787958 | AV144: 304002.5815 | AW144: 200601.7184 | AX144: 188191.7378
A145: Harborough | B145: East Midlands | C145: England | E145: 0 | F145: 0 | G145: 0 | H145: 0 | I145: 0 | J145: 0 | K145: 0 | M145: 3795.86 | N145: 366.84 | O145: 603.87 | P145: 4595.37 | Q145: 0 | R145: 4372.3 | S145: 13734.24 | U145: 2942.54 | V145: 272.74 | W145: 734.6 | X145: 174.3 | Y145: 0 | Z145: 779.71 | AA145: 4903.89 | AC145: 0 | AD145: 0 | AE145: 0 | AF145: 0 | AG145: 0 | AH145: 2129.3 | AI145: 2129.3 | AK145: 1576.35 | AL145: 2070.46 | AM145: 500.05 | AN145: 27.91 | AO145: 0 | AP145: 8262.99 | AQ145: 12437.76 | AS145: 33205.19 | AU145: 46343 | AV145: 6477.86116 | AW145: 23713.82426 | AX145: 8629.277388
A146: Haringey | B146: Greater London | C146: England | AU146: 1485882 | AV146: 638314.7097 | AW146: 306687.2278 | AX146: 370934.9823
A147: Harlow | B147: Eastern | C147: England | E147: 570 | F147: 1815 | G147: 1109.63 | H147: 0 | I147: 0 | J147: 5678.54 | K147: 9173.17 | M147: 38957.29 | N147: 6232.5 | O147: 4937.25 | P147: 2803 | Q147: 0 | R147: 32452.59 | S147: 85382.63 | U147: 928.33 | V147: 8586.4 | W147: 3889.2 | X147: 0 | Y147: 0 | Z147: 23461.06 | AA147: 36864.99 | AC147: 0 | AD147: 3860.92 | AE147: 332.16 | AF147: 670.8 | AG147: 0 | AH147: 11962.61 | AI147: 16826.49 | AK147: 82.96 | AL147: 360 | AM147: 153.95 | AN147: 0 | AO147: 120 | AP147: 22137.06 | AQ147: 22853.97 | AS147: 171101.25 | AU147: 173789 | AV147: 27340.19994 | AW147: 93586.4312 | AX147: 27797.2308
A148: Harrogate | B148: Yorks and Humberside | C148: England | E148: 0 | F148: 0 | G148: 0 | H148: 0 | I148: 0 | J148: 163.74 | K148: 163.74 | M148: 1834.11 | N148: 3986.54 | O148: 532.53 | P148: 1195.22 | Q148: 77.04 | R148: 25660.45 | S148: 33285.89 | U148: 700 | V148: 1111.14 | W148: 2512.19 | X148: 0 | Y148: 0 | Z148: 31733.76 | AA148: 36057.09 | AC148: 0 | AD148: 281.58 | AE148: 763.21 | AF148: 0 | AG148: 0 | AH148: 0 | AI148: 1044.79 | AK148: 450 | AL148: 310.8 | AM148: 1784.98 | AN148: 0 | AO148: 0 | AP148: 20469.46 | AQ148: 23015.24 | AS148: 93566.75 | AU148: 109387 | AV148: 7578.956291 | AW148: 48390.9367 | AX148: 32898.46685
A149: Harrow | B149: Greater London | C149: England | E149: 13063.59 | F149: 67910.68 | G149: 52404.24 | H149: 0 | I149: 0 | J149: 23205.37 | K149: 156583.88 | M149: 0 | N149: 25716.53 | O149: 973.56 | P149: 5511.31 | Q149: 0 | R149: 14189.83 | S149: 46391.23 | U149: 259042.5 | V149: 29061.03 | W149: 1629.96 | X149: 2089.37 | Y149: 0 | Z149: 85692.98 | AA149: 377515.84 | AC149: 0 | AD149: 0 | AE149: 0 | AF149: 0 | AG149: 0 | AH149: 0 | AI149: 0 | AK149: 5025.8 | AL149: 8703.92 | AM149: 2452.54 | AN149: 5981.48 | AO149: 0 | AP149: 130758.51 | AQ149: 152922.25 | AS149: 733413.2 | AU149: 677094 | AV149: 337988.8546 | AW149: 89447.22905 | AX149: 162515.4567
A150: Hart | B150: South East | C150: England | AU150: 47805 | AV150: 1932.86799 | AW150: 26519.32689 | AX150: 10324.69482
A151: Hartlepool | B151: North East | C151: England | E151: 0 | F151: 0 | G151: 11214.71 | H151: 0 | I151: 0 | J151: 0 | K151: 11214.71 | M151: 0 | N151: 4505.4 | O151: 111985.25 | P151: 14687.04 | Q151: 4325.48 | R151: 0 | S151: 135503.17 | U151: 625 | V151: 315.92 | W151: 76668.44 | X151: 0 | Y151: 0 | Z151: 0 | AA151: 77609.36 | AC151: 0 | AD151: 0 | AE151: 0 | AF151: 0 | AG151: 0 | AH151: 0 | AI151: 0 | AK151: 5757 | AL151: 0 | AM151: 48379.48 | AN151: 64.18 | AO151: 0 | AP151: 4714.25 | AQ151: 58914.91 | AS151: 283242.15 | AU151: 286417 | AV151: 40377.01979 | AW151: 160646.974 | AX151: 55414.39438
A152: Hastings | B152: South East | C152: England | E152: 0 | F152: 7234.32 | G152: 2862.79 | H152: 0 | I152: 0 | J152: 24024.59 | K152: 34121.7 | M152: 413.4 | N152: 34366.55 | O152: 1246.53 | P152: 11374.95 | Q152: 0 | R152: 44616.64 | S152: 92018.07 | U152: 0 | V152: 6240.41 | W152: 4129.7 | X152: 0 | Y152: 0 | Z152: 35576.93 | AA152: 45947.04 | AC152: 0 | AD152: 434.29 | AE152: 0 | AF152: 0 | AG152: 0 | AH152: 153.08 | AI152: 587.37 | AK152: 0 | AL152: 22565.69 | AM152: 4358.08 | AN152: 1476.55 | AO152: 558.56 | AP152: 78111.92 | AQ152: 107070.8 | AS152: 279744.98 | AU152: 230368 | AV152: 54641.28994 | AW152: 79907.1453 | AX152: 62272.35757
A153: Havant | B153: South East | C153: England | E153: 0 | F153: 4470.6 | G153: 0 | H153: 0 | I153: 0 | J153: 0 | K153: 4470.6 | M153: 1000 | N153: 32799.13 | O153: 1264.03 | P153: 13200.19 | Q153: 0 | R153: 51522.1 | S153: 99785.45 | U153: 0 | V153: 16766.39 | W153: 6660.87 | X153: 0 | Y153: 0 | Z153: 14323.76 | AA153: 37751.02 | AC153: 0 | AD153: 0 | AE153: 0 | AF153: 0 | AG153: 0 | AH153: 0 | AI153: 0 | AK153: 0 | AL153: 0 | AM153: 0 | AN153: 0 | AO153: 0 | AP153: 9705.93 | AQ153: 9705.93 | AS153: 151713 | AU153: 151713 | AV153: 38862.85048 | AW153: 64859.00908 | AX153: 27392.10407
A154: Havering | B154: Greater London | C154: England | E154: 0 | F154: 1560 | G154: 32590.77 | H154: 0 | I154: 0 | J154: 3913.54 | K154: 38064.31 | M154: 76409.21 | N154: 38391.12 | O154: 0 | P154: 39166.27 | Q154: 0 | R154: 23079.61 | S154: 177046.21 | U154: 0 | V154: 2758.29 | W154: 0 | X154: 247.71 | Y154: 0 | Z154: 10528.15 | AA154: 13534.15 | AC154: 0 | AD154: 0 | AE154: 1000 | AF154: 0 | AG154: 0 | AH154: 0 | AI154: 1000 | AK154: 8501.58 | AL154: 36648.76 | AM154: 0 | AN154: 5877.84 | AO154: 0 | AP154: 91313.8 | AQ154: 142341.98 | AS154: 371986.65 | AU154: 379580 | AV154: 120606.6723 | AW154: 117890.164 | AX154: 85441.72566
A155: Herefordshire | B155: West Midlands | C155: England | K155: 92 | S155: 77141.83 | AA155: 49734.59 | AI155: 3073.85 | AQ155: 45280.67 | AS155: 175322.94 | AU155: 195709 | AV155: 19102.52245 | AW155: 117887.1176 | AX155: 28351.22916
A156: Hertsmere | B156: Eastern | C156: England | E156: 5474.45 | F156: 0 | G156: 0 | H156: 0 | I156: 0 | J156: 0 | K156: 5474.45 | M156: 86348.65 | N156: 0 | O156: 0 | P156: 0 | Q156: 0 | R156: 0 | S156: 86348.65 | U156: 26789.88 | V156: 0 | W156: 0 | X156: 0 | Y156: 0 | Z156: 0 | AA156: 26789.88 | AC156: 260 | AD156: 0 | AE156: 0 | AF156: 0 | AG156: 0 | AH156: 0 | AI156: 260 | AK156: 52431.79 | AL156: 0 | AM156: 0 | AN156: 0 | AO156: 0 | AP156: 0 | AQ156: 52431.79 | AS156: 171304.77 | AU156: 170604 | AV156: 46069.67376 | AW156: 72615.93172 | AX156: 27774.75148
A157: High Peak | B157: East Midlands | C157: England | K157: 0 | M157: 318 | N157: 18443 | O157: 3189 | P157: 2012 | Q157: 0 | R157: 13214 | S157: 37176 | U157: 0 | V157: 5053 | W157: 9 | X157: 0 | Y157: 0 | Z157: 2071 | AA157: 7133 | AC157: 0 | AD157: 0 | AE157: 0 | AF157: 0 | AG157: 0 | AH157: 0 | AI157: 0 | AK157: 0 | AL157: 17846 | AM157: 569 | AN157: 9 | AO157: 0 | AP157: 2184 | AQ157: 20608 | AS157: 64917 | AU157: 71857 | AV157: 1719.136767 | AW157: 37644.86801 | AX157: 18713.8667
A158: Highland | B158: Scotland | C158: Scotland | E158: 0 | F158: 0 | G158: 0 | H158: 19 | I158: 0 | J158: 7741 | K158: 7760 | M158: 972 | N158: 0 | O158: 164 | P158: 6222 | Q158: 43 | R158: 1623860 | S158: 1631261 | U158: 1527 | V158: 2122 | W158: 508 | X158: 0 | Y158: 0 | Z158: 127120 | AA158: 131277 | AC158: 0 | AD158: 149 | AE158: 0 | AF158: 0 | AG158: 0 | AH158: 421 | AI158: 570 | AK158: 0 | AL158: 0 | AM158: 0 | AN158: 0 | AO158: 0 | AP158: 116045 | AQ158: 116045 | AS158: 1886913 | AU158: 1189515 | AV158: 29986.98777 | AW158: 1105855.159 | AX158: 19588.58946
A159: Hillingdon | B159: Greater London | C159: England | E159: 2065 | F159: 5102 | G159: 37344 | H159: 5530 | I159: 500 | J159: 29163 | K159: 79704 | M159: 2870 | N159: 19315 | O159: 3920 | P159: 38793 | Q159: 782 | R159: 44846 | S159: 110526 | U159: 12418 | V159: 9196 | W159: 12359 | X159: 15846 | Y159: 872 | Z159: 27757 | AA159: 78448 | AC159: 0 | AD159: 0 | AE159: 315 | AF159: 2026 | AG159: 0 | AH159: 0 | AI159: 2341 | AK159: 202648 | AL159: 14617 | AM159: 13640 | AN159: 18812 | AO159: 920 | AP159: 151574 | AQ159: 402211 | AS159: 673230 | AU159: 673124 | AV159: 267945.5747 | AW159: 148957.6922 | AX159: 163985.5189
A160: Hinckley and Bosworth | B160: East Midlands | C160: England | E160: 0 | F160: 0 | G160: 545.87 | H160: 0 | I160: 0 | J160: 343.68 | K160: 889.55 | M160: 11584.76 | N160: 7000 | O160: 6713.16 | P160: 9831.77 | Q160: 318.43 | R160: 18985 | S160: 54433.12 | U160: 5521.36 | V160: 456.3 | W160: 237.88 | X160: 299.32 | Y160: 0 | Z160: 0 | AA160: 6514.86 | AC160: 0 | AD160: 0 | AE160: 0 | AF160: 0 | AG160: 0 | AH160: 284.16 | AI160: 284.16 | AK160: 9998.32 | AL160: 3645.62 | AM160: 7149 | AN160: 2627.69 | AO160: 0 | AP160: 12353.03 | AQ160: 35773.66 | AS160: 97895.35 | AU160: 78129 | AV160: 7995.692937 | AW160: 46908.74457 | AX160: 11400.93458
A161: Horsham | B161: South East | C161: England | AU161: 102036 | AV161: 15147.70999 | AW161: 50185.26794 | AX161: 17212.95516
A162: Hounslow | B162: Greater London | C162: England | E162: 0 | F162: 5804.42 | G162: 9107.43 | H162: 0 | I162: 0 | J162: 41938.53 | K162: 56850.38 | M162: 1846.24 | N162: 63655.7 | O162: 6405.01 | P162: 0 | Q162: 0 | R162: 65926.68 | S162: 137833.63 | U162: 0 | V162: 83214.02 | W162: 7165.27 | X162: 0 | Y162: 0 | Z162: 82694.8 | AA162: 173074.09 | AC162: 0 | AD162: 1578.16 | AE162: 0 | AF162: 0 | AG162: 0 | AH162: 2688.02 | AI162: 4266.18 | AK162: 4019.75 | AL162: 1779.31 | AM162: 0 | AN162: 371.76 | AO162: 392.55 | AP162: 336078.32 | AQ162: 342641.69 | AS162: 714665.97 | AU162: 714467 | AV162: 274262.8104 | AW162: 171551.0651 | AX162: 175615.5782
A163: Huntingdonshire | B163: Eastern | C163: England | E163: 2620.4 | F163: 2277.5 | G163: 0 | H163: 0 | I163: 0 | J163: 2320 | K163: 7217.9 | M163: 1150 | N163: 31690.47 | O163: 1361.5 | P163: 10664.34 | Q163: 95 | R163: 33053.69 | S163: 78015 | U163: 1470.42 | V163: 17209.98 | W163: 2893.02 | X163: 0 | Y163: 0 | Z163: 11826.1 | AA163: 33399.52 | AC163: 0 | AD163: 260 | AE163: 0 | AF163: 0 | AG163: 0 | AH163: 630 | AI163: 890 | AK163: 0 | AL163: 1633.93 | AM163: 64 | AN163: 0 | AO163: 0 | AP163: 8012.26 | AQ163: 9710.19 | AS163: 129232.61 | AU163: 161238 | AV163: 21111.12506 | AW163: 99195.56177 | AX163: 17635.42469
A164: Hyndburn | B164: North West | C164: England | K164: 900 | S164: 34294.35 | AA164: 16244.14 | AI164: 1261.35 | AQ164: 63663.02 | AS164: 116362.86 | AU164: 118746 | AV164: 19869.41729 | AW164: 39771.72584 | AX164: 40549.58953
A165: Inverclyde | B165: Scotland | C165: Scotland | E165: 0 | F165: 0 | G165: 2442.85 | H165: 0 | I165: 0 | J165: 0 | K165: 2442.85 | M165: 0 | N165: 1765.99 | O165: 43.38 | P165: 15.98 | Q165: 164.01 | R165: 922825.56 | S165: 924814.92 | U165: 0 | V165: 8063.99 | W165: 6773.67 | X165: 0 | Y165: 0 | Z165: 11715.82 | AA165: 26553.48 | AC165: 0 | AD165: 0 | AE165: 47.8 | AF165: 0 | AG165: 0 | AH165: 0 | AI165: 47.8 | AK165: 156.08 | AL165: 2536.05 | AM165: 4452.97 | AN165: 0 | AO165: 0 | AP165: 185.91 | AQ165: 7331.01 | AS165: 961190.06 | AU165: 185910 | AV165: 5830.258167 | AW165: 138248.1022 | AX165: 19007.91713
A166: Ipswich | B166: Eastern | C166: England | K166: 862.5 | S166: 89931.88 | AA166: 22594.86 | AC166: 0 | AD166: 0 | AE166: 0 | AF166: 0 | AG166: 0 | AH166: 0 | AI166: 0 | AQ166: 138410.76 | AS166: 251800 | AU166: 246262 | AV166: 29387.12768 | AW166: 138122.9654 | AX166: 44232.95134
A167: Isle of Anglesey | B167: Wales | C167: Wales | E167: 0 | F167: 0 | G167: 0 | H167: 0 | I167: 0 | J167: 0 | K167: 0 | M167: 1681.48 | N167: 13740.63 | O167: 12021.12 | P167: 1153.87 | Q167: 390.55 | R167: 25407.69 | S167: 54395.34 | U167: 3056.61 | V167: 14016.6 | W167: 6102.88 | X167: 47.75 | Y167: 0 | Z167: 13958.13 | AA167: 37181.97 | AC167: 0 | AD167: 0 | AE167: 384.06 | AF167: 0 | AG167: 0 | AH167: 0 | AI167: 384.06 | AK167: 22253.78 | AL167: 0 | AM167: 1172.26 | AN167: 0 | AO167: 0 | AP167: 3193.8 | AQ167: 26619.84 | AS167: 118581.21 | AU167: 118413 | AV167: 13780.56265 | AW167: 61600.29544 | AX167: 31323.54994
A168: Isle of Wight | B168: South East | C168: England | E168: 0 | F168: 1972 | G168: 0 | H168: 0 | I168: 0 | J168: 2003 | K168: 3975 | M168: 494 | N168: 54967 | O168: 589 | P168: 11901 | Q168: 0 | R168: 29650 | S168: 97601 | U168: 900 | V168: 37215 | W168: 4132 | X168: 0 | Y168: 0 | Z168: 27869 | AA168: 70116 | AC168: 0 | AD168: 0 | AE168: 0 | AF168: 0 | AG168: 0 | AH168: 191 | AI168: 191 | AK168: 2225 | AL168: 3812 | AM168: 182 | AN168: 0 | AO168: 0 | AP168: 8081 | AQ168: 14300 | AS168: 186183 | AU168: 185553 | AV168: 9729.348776 | AW168: 90849.35546 | AX168: 50847.87368
A169: Isles of Scilly | B169: South West | C169: England | AU169: 169 | AV169: 0 | AW169: 0 | AX169: 0
A170: Islington | B170: Inner London | C170: England | E170: 9271.53 | F170: 38545.2 | G170: 132122.14 | H170: 2022.25 | I170: 0 | J170: 88945.91 | K170: 270907.03 | M170: 10928.54 | N170: 208334.41 | O170: 7632.45 | P170: 21571.68 | Q170: 6036.5 | R170: 261856.78 | S170: 516360.36 | U170: 3197.58 | V170: 50141.4 | W170: 44081.03 | X170: 0 | Y170: 0 | Z170: 42599.87 | AA170: 140019.88 | AC170: 2180 | AD170: 0 | AE170: 0 | AF170: 0 | AG170: 0 | AH170: 4331.01 | AI170: 6511.01 | AK170: 18275.85 | AL170: 40141.73 | AM170: 83323.37 | AN170: 0 | AO170: 0 | AP170: 24828.77 | AQ170: 166569.72 | AS170: 1100368 | AU170: 989332 | AV170: 253832.7738 | AW170: 394265.4497 | AX170: 213176.1186
A171: Kensington and Chelsea | B171: Inner London | C171: England | E171: 4385.92 | F171: 1018069.33 | G171: 0 | H171: 0 | I171: 0 | J171: 4382.15 | K171: 1026837.4 | M171: 30377.86 | N171: 191029.01 | O171: 0 | P171: 17.83 | Q171: 0 | R171: 21814.54 | S171: 243239.24 | U171: 2196.54 | V171: 76272.78 | W171: 0 | X171: 0 | Y171: 0 | Z171: 12389.64 | AA171: 90858.96 | AC171: 2750.56 | AD171: 0 | AE171: 0 | AF171: 0 | AG171: 0 | AH171: 0 | AI171: 2750.56 | AK171: 0 | AL171: 4328.81 | AM171: 0 | AN171: 0 | AO171: 0 | AP171: 2702.93 | AQ171: 7031.74 | AS171: 1370717.9 | AU171: 1137021 | AV171: 425972.3463 | AW171: 141594.771 | AX171: 479010.3009
A172: Kettering | B172: East Midlands | C172: England | E172: 0 | F172: 0 | G172: 0 | H172: 0 | I172: 0 | J172: 995.59 | K172: 995.59 | M172: 0 | N172: 0 | O172: 385.12 | P172: 751.44 | Q172: 151.02 | R172: 42813.72 | S172: 44101.3 | U172: 53.71 | V172: 864.81 | W172: 1129.09 | X172: 0 | Y172: 0 | Z172: 39867.52 | AA172: 41915.13 | AC172: 0 | AD172: 0 | AE172: 0 | AF172: 0 | AG172: 0 | AH172: 655.2 | AI172: 655.2 | AK172: 0 | AL172: 0 | AM172: 0 | AN172: 920.22 | AO172: 0 | AP172: 21442.56 | AQ172: 22362.78 | AS172: 110030 | AU172: 113975 | AV172: 16077.8463 | AW172: 60987.96848 | AX172: 21127.04709
A173: King's Lynn & West Norfolk | B173: Eastern | C173: England | AU173: 182100 | AV173: 15450.51769 | AW173: 110949.0524 | AX173: 30094.92723
A174: Kingston upon Hull | B174: Yorks and Humberside | C174: England | E174: 0 | F174: 0 | G174: 0 | H174: 0 | I174: 0 | J174: 5004.5 | K174: 5004.5 | M174: 0 | N174: 0 | O174: 0 | P174: 58132.29 | Q174: 421.96 | R174: 437715.48 | S174: 496269.73 | U174: 0 | V174: 0 | W174: 0 | X174: 1375.58 | Y174: 0 | Z174: 37611.35 | AA174: 38986.93 | AC174: 0 | AD174: 0 | AE174: 0 | AF174: 1131.5 | AG174: 0 | AH174: 12091.59 | AI174: 13223.09 | AK174: 4608.37 | AL174: 0 | AM174: 0 | AN174: 3453.06 | AO174: 0 | AP174: 113822.57 | AQ174: 121884 | AS174: 675368.25 | AU174: 681189 | AV174: 79533.7834 | AW174: 434186.9179 | AX174: 87929.10489
A175: Kingston upon Thames | B175: Greater London | C175: England | E175: 20520 | F175: 0 | G175: 128196 | H175: 4911 | I175: 0 | J175: 7390 | K175: 161017 | M175: 72144 | N175: 0 | O175: 13590 | P175: 24388 | Q175: 0 | R175: 7152 | S175: 117274 | U175: 0 | V175: 0 | W175: 3097 | X175: 660 | Y175: 0 | Z175: 157 | AA175: 3914 | AC175: 0 | AD175: 0 | AE175: 3076 | AF175: 0 | AG175: 0 | AH175: 0 | AI175: 3076 | AK175: 14110 | AL175: 11025 | AM175: 2220 | AN175: 18817 | AO175: 0 | AP175: 1233 | AQ175: 47405 | AS175: 332686 | AU175: 308670 | AV175: 107988.0279 | AW175: 66459.69846 | AX175: 90145.36167
A176: Kirklees | B176: Yorks and Humberside | C176: England | E176: 29.03 | F176: 2985.95 | G176: 2029.16 | H176: 0 | I176: 0 | J176: 3407.55 | K176: 8451.69 | M176: 11417.57 | N176: 74860.72 | O176: 14231.42 | P176: 16651.33 | Q176: 3125.88 | R176: 103357.87 | S176: 223644.79 | U176: 12048.63 | V176: 73623.33 | W176: 20345.75 | X176: 5967.03 | Y176: 25.35 | Z176: 57781.04 | AA176: 169791.13 | AC176: 0 | AD176: 0 | AE176: 0 | AF176: 0 | AG176: 0 | AH176: 320 | AI176: 320 | AK176: 8899.09 | AL176: 6424.94 | AM176: 21832.94 | AN176: 2164.56 | AO176: 0 | AP176: 38312.21 | AQ176: 77633.74 | AS176: 479841.35 | AU176: 551690 | AV176: 71332.9922 | AW176: 222630.6476 | AX176: 182297.7137
A177: Knowsley | B177: North West | C177: England | E177: 3182.85 | F177: 0 | G177: 2600.66 | H177: 0 | I177: 0 | J177: 27846.04 | K177: 33629.55 | M177: 6350.44 | N177: 137587.98 | O177: 29161.35 | P177: 23553.44 | Q177: 0 | R177: 214640.75 | S177: 411293.96 | U177: 5452.21 | V177: 26668.23 | W177: 6533.38 | X177: 0 | Y177: 0 | Z177: 20923.46 | AA177: 59577.28 | AC177: 0 | AD177: 0 | AE177: 0 | AF177: 0 | AG177: 0 | AH177: 0 | AI177: 0 | AK177: 1795.51 | AL177: 18321.47 | AM177: 3444.78 | AN177: 0 | AO177: 0 | AP177: 42573.89 | AQ177: 66135.65 | AS177: 570636.44 | AU177: 563700 | AV177: 56359.11868 | AW177: 377150.5244 | AX177: 81850.91696
A178: Lambeth | B178: Inner London | C178: England | K178: 293512.53 | S178: 613911.8 | AA178: 64191.27 | AI178: 656.88 | AQ178: 293916.53 | AS178: 1266189.01 | AU178: 1277456 | AV178: 287220.4948 | AW178: 633545.9383 | AX178: 189074.1611
A179: Lancaster | B179: North West | C179: England | E179: 0 | F179: 0 | G179: 600 | H179: 0 | I179: 0 | J179: 1242 | K179: 1842 | M179: 1235 | N179: 6391 | O179: 1875 | P179: 0 | Q179: 0 | R179: 12026 | S179: 21527 | U179: 1450 | V179: 5642 | W179: 870 | X179: 0 | Y179: 0 | Z179: 24290 | AA179: 32252 | AC179: 0 | AD179: 0 | AE179: 0 | AF179: 0 | AG179: 0 | AH179: 0 | AI179: 0 | AK179: 43071 | AL179: 4701 | AM179: 0 | AN179: 0 | AO179: 0 | AP179: 11302 | AQ179: 59074 | AS179: 114695 | AU179: 162472 | AV179: 29532.44921 | AW179: 58130.36455 | AX179: 48318.32549
A180: Leeds | B180: Yorks and Humberside | C180: England | E180: 20658.86 | F180: 11092.78 | G180: 1271.22 | H180: 0 | I180: 0 | J180: 46880.06 | K180: 79902.92 | M180: 624432.84 | N180: 38957.76 | O180: 73352.52 | P180: 90147.96 | Q180: 10307.22 | R180: 496610.64 | S180: 1333808.94 | U180: 35977.1 | V180: 12057.82 | W180: 25562.18 | X180: 4644.54 | Y180: 556.56 | Z180: 80830.23 | AA180: 159628.43 | AC180: 0 | AD180: 0 | AE180: 0 | AF180: 0 | AG180: 0 | AH180: 1331.8 | AI180: 1331.8 | AK180: 104850.91 | AL180: 15866.01 | AM180: 43483.14 | AN180: 12130.09 | AO180: 98.8 | AP180: 215025.59 | AQ180: 391454.54 | AS180: 1966126.63 | AU180: 1531192 | AV180: 259258.9831 | AW180: 732236.1097 | AX180: 364495.1986
A181: Leicester | B181: East Midlands | C181: England | E181: 1437.5 | F181: 3500.04 | G181: 0 | H181: 0 | I181: 0 | J181: 70091.4 | K181: 75028.94 | M181: 6284.21 | N181: 71366.79 | O181: 1888.27 | P181: 27307.57 | Q181: 432.97 | R181: 199134.96 | S181: 306414.77 | U181: 5529.78 | V181: 45063.98 | W181: 5908.04 | X181: 9161.11 | Y181: 0 | Z181: 146906.49 | AA181: 212569.4 | AC181: 4681.94 | AD181: 1150.97 | AE181: 1441.28 | AF181: 1315.51 | AG181: 578.9 | AH181: 76423.59 | AI181: 85592.19 | AK181: 0 | AL181: 0 | AM181: 0 | AN181: 0 | AO181: 0 | AP181: 2223.04 | AQ181: 2223.04 | AS181: 681828.34 | AU181: 681863 | AV181: 205087.4048 | AW181: 289684.4727 | AX181: 100335.7864
A182: Lewes | B182: South East | C182: England | E182: 2142 | F182: 4164 | G182: 0 | H182: 322 | I182: 0 | J182: 414 | K182: 7042 | M182: 8782 | N182: 1936 | O182: 0 | P182: 955 | Q182: 0 | R182: 3090 | S182: 14763 | U182: 1410 | V182: 284 | W182: 1117 | X182: 368 | Y182: 0 | Z182: 1144 | AA182: 4323 | AC182: 23261 | AD182: 8703 | AE182: 88 | AF182: 119 | AG182: 0 | AH182: 10032 | AI182: 42203 | AK182: 20753 | AL182: 3031 | AM182: 25 | AN182: 3039 | AO182: 0 | AP182: 18812 | AQ182: 45660 | AS182: 113991 | AU182: 113991 | AV182: 28932.98153 | AW182: 30104.08374 | AX182: 33093.124
A183: Lewisham | B183: Inner London | C183: England | K183: 860831.69 | S183: 260669.61 | AA183: 13856.74 | AI183: 2342.59 | AQ183: 12932.1 | AS183: 1150632.73 | AU183: 1226063 | AV183: 461232.2429 | AW183: 373607.4018 | AX183: 247137.3995
A184: Lichfield | B184: West Midlands | C184: England | E184: 0 | F184: 0 | G184: 0 | H184: 0 | I184: 0 | J184: 0 | K184: 0 | M184: 592 | N184: 6261 | O184: 3517 | P184: 1404 | Q184: 0 | R184: 10916 | S184: 22690 | U184: 287 | V184: 1101 | W184: 5165 | X184: 1437 | Y184: 0 | Z184: 5602 | AA184: 13592 | AC184: 0 | AD184: 0 | AE184: 0 | AF184: 0 | AG184: 0 | AH184: 0 | AI184: 0 | AK184: 504 | AL184: 1018 | AM184: 830 | AN184: 0 | AO184: 0 | AP184: 1650 | AQ184: 4002 | AS184: 40284 | AU184: 79039 | AV184: 3509.691678 | AW184: 53952.26217 | AX184: 8855.515667
A185: Lincoln | B185: East Midlands | C185: England | AU185: 139678 | AV185: 16394.78067 | AW185: 71657.48653 | AX185: 29445.14634
A186: Liverpool | B186: North West | C186: England | E186: 1429.91 | F186: 262.86 | G186: 0 | H186: 0 | I186: 0 | J186: 4921.33 | K186: 6614.1 | M186: 388514.35 | N186: 131511.87 | O186: 37705.49 | P186: 37703.12 | Q186: 1914.8 | R186: 1042418.62 | S186: 1639768.25 | U186: 38902.73 | V186: 23252.67 | W186: 8016.38 | X186: 3757.23 | Y186: 0 | Z186: 151119.08 | AA186: 225048.09 | AC186: 0 | AD186: 0 | AE186: 0 | AF186: 0 | AG186: 0 | AH186: 0 | AI186: 0 | AK186: 17949.89 | AL186: 7600.01 | AM186: 2044.45 | AN186: 0 | AO186: 641.52 | AP186: 43181.82 | AQ186: 71417.69 | AS186: 1942848.13 | AU186: 1751657 | AV186: 120646.6978 | AW186: 1089527.681 | AX186: 363823.4057
A187: Luton | B187: Eastern | C187: England | K187: 24989.76 | S187: 63507.74 | AA187: 42429.58 | AI187: 6121.88 | AQ187: 270743.18 | AS187: 407792.14 | AU187: 402467 | AV187: 149962.4074 | AW187: 113515.2953 | AX187: 85367.78402
A188: Maidstone | B188: South East | C188: England | AU188: 162344 | AV188: 24013.63171 | AW188: 78311.29891 | AX188: 31692.17226
A189: Maldon | B189: Eastern | C189: England | E189: 0 | F189: 0 | G189: 0 | H189: 0 | I189: 0 | J189: 0 | K189: 0 | M189: 83.96 | N189: 392.88 | O189: 0 | P189: 0 | Q189: 0 | R189: 10722.93 | S189: 11199.77 | U189: 0 | V189: 0 | W189: 0 | X189: 0 | Y189: 0 | Z189: 10522.37 | AA189: 10522.37 | AC189: 0 | AD189: 0 | AE189: 0 | AF189: 0 | AG189: 0 | AH189: 0 | AI189: 0 | AK189: 2134 | AL189: 900 | AM189: 0 | AN189: 0 | AO189: 0 | AP189: 27438.98 | AQ189: 30472.98 | AS189: 52195.12 | AU189: 52594 | AV189: 2951.295965 | AW189: 26976.75599 | AX189: 12743.0127
A190: Malvern Hills | B190: West Midlands | C190: England | E190: 0 | F190: 0 | G190: 0 | H190: 0 | I190: 0 | J190: 0 | K190: 0 | M190: 1566 | N190: 11801 | O190: 7097 | P190: 3443 | Q190: 326 | R190: 18329 | S190: 42562 | U190: 0 | V190: 2220 | W190: 4984 | X190: 0 | Y190: 0 | Z190: 6411 | AA190: 13615 | AC190: 0 | AD190: 0 | AE190: 0 | AF190: 0 | AG190: 0 | AH190: 0 | AI190: 0 | AK190: 3465 | AL190: 172 | AM190: 1472 | AN190: 1345 | AO190: 0 | AP190: 9128 | AQ190: 15582 | AS190: 71759 | AU190: 86737 | AV190: 6636.916955 | AW190: 54402.19243 | AX190: 13885.03363
A191: Manchester | B191: North West | C191: England | AU191: 1874257 | AV191: 324797.2954 | AW191: 1105957.634 | AX191: 270164.5988
A192: Mansfield | B192: East Midlands | C192: England | E192: 0 | F192: 0 | G192: 0 | H192: 0 | I192: 0 | J192: 0 | K192: 0 | M192: 0 | N192: 33670.62 | O192: 2042.86 | P192: 880.64 | Q192: 0 | R192: 8299.12 | S192: 44893.24 | U192: 0 | V192: 22697.84 | W192: 2908.07 | X192: 2833.89 | Y192: 0 | Z192: 2851.31 | AA192: 31291.11 | AC192: 0 | AD192: 0 | AE192: 0 | AF192: 0 | AG192: 0 | AH192: 0 | AI192: 0 | AK192: 0 | AL192: 4369.79 | AM192: 130.95 | AN192: 0 | AO192: 0 | AP192: 2932.52 | AQ192: 7433.26 | AS192: 83617.61 | AU192: 170670 | AV192: 14387.35527 | AW192: 111265.0972 | AX192: 24224.66305
A193: Medway | B193: South East | C193: England | E193: 0 | F193: 3261.75 | G193: 5208.25 | H193: 0 | I193: 0 | J193: 2247.88 | K193: 10717.88 | M193: 3160.9 | N193: 55792.38 | O193: 3423.74 | P193: 12875.57 | Q193: 0 | R193: 20524.33 | S193: 95776.92 | U193: 0 | V193: 8346.14 | W193: 8287.74 | X193: 0 | Y193: 0 | Z193: 12966.73 | AA193: 29600.61 | AC193: 0 | AD193: 0 | AE193: 394.78 | AF193: 0 | AG193: 0 | AH193: 0 | AI193: 394.78 | AK193: 1854.96 | AL193: 32259.24 | AM193: 12838.87 | AN193: 0 | AO193: 0 | AP193: 131117 | AQ193: 178070.07 | AS193: 314560.26 | AU193: 372112 | AV193: 81862.19804 | AW193: 83049.93941 | AX193: 141027.2745
A194: Melton | B194: East Midlands | C194: England | E194: 0 | F194: 0 | G194: 0 | H194: 0 | I194: 0 | J194: 567 | K194: 567 | M194: 50 | N194: 5244 | O194: 2959 | P194: 0 | Q194: 0 | R194: 3527 | S194: 11780 | U194: 291 | V194: 7054 | W194: 593 | X194: 0 | Y194: 0 | Z194: 2581 | AA194: 10519 | AC194: 0 | AD194: 0 | AE194: 0 | AF194: 0 | AG194: 0 | AH194: 0 | AI194: 0 | AK194: 6583 | AL194: 133 | AM194: 452 | AN194: 540 | AO194: 0 | AP194: 3846 | AQ194: 11554 | AS194: 34420 | AU194: 35202 | AV194: 4607.385944 | AW194: 18983.30751 | AX194: 5949.06897
A195: Mendip | B195: South West | C195: England | E195: 0 | F195: 599.69 | G195: 0 | H195: 0 | I195: 0 | J195: 510.84 | K195: 1110.53 | M195: 0 | N195: 22424.42 | O195: 1809.02 | P195: 6482.63 | Q195: 0 | R195: 11192.48 | S195: 41908.55 | U195: 0 | V195: 2525.43 | W195: 1759.26 | X195: 0 | Y195: 0 | Z195: 1423.22 | AA195: 5707.91 | AC195: 0 | AD195: 0 | AE195: 0 | AF195: 0 | AG195: 0 | AH195: 0 | AI195: 0 | AK195: 0 | AL195: 19194 | AM195: 15686.07 | AN195: 0 | AO195: 0 | AP195: 31481 | AQ195: 66361.07 | AS195: 115088.06 | AU195: 114330 | AV195: 11282.36642 | AW195: 53229.09301 | AX195: 30351.26995
A196: Merthyr Tydfil | B196: Wales | C196: Wales | E196: 0 | F196: 0 | G196: 0 | H196: 0 | I196: 0 | J196: 2089.74 | K196: 2089.74 | M196: 730 | N196: 17024.06 | O196: 6830.71 | P196: 1107.78 | Q196: 0 | R196: 57591.85 | S196: 83284.4 | U196: 3850 | V196: 5740.04 | W196: 0 | X196: 0 | Y196: 0 | Z196: 15576.29 | AA196: 25166.33 | AC196: 0 | AD196: 0 | AE196: 0 | AF196: 0 | AG196: 0 | AH196: 0 | AI196: 0 | AK196: 5546.04 | AL196: 3307.29 | AM196: 3563.84 | AN196: 0 | AO196: 0 | AP196: 14502.34 | AQ196: 26919.51 | AS196: 137459.98 | AU196: 138154 | AV196: 8036.503305 | AW196: 102319.765 | AX196: 15178.81867
A197: Merton | B197: Greater London | C197: England | AU197: 431539 | AV197: 154239.7787 | AW197: 103564.1034 | AX197: 117183.5657
A198: Mid Devon | B198: South West | C198: England | E198: 0 | F198: 0 | G198: 0 | H198: 0 | I198: 0 | J198: 0 | K198: 0 | M198: 1971.11 | N198: 8258.16 | O198: 0 | P198: 95.79 | Q198: 0 | R198: 1597.45 | S198: 11922.51 | U198: 0 | V198: 0 | W198: 3129.7 | X198: 0 | Y198: 0 | Z198: 721.72 | AA198: 3851.42 | AC198: 0 | AD198: 0 | AE198: 0 | AF198: 0 | AG198: 0 | AH198: 0 | AI198: 0 | AK198: 18125.32 | AL198: 4982.34 | AM198: 2321.83 | AN198: 0 | AO198: 0 | AP198: 2997.61 | AQ198: 28427.1 | AS198: 44201.03 | AU198: 61358 | AV198: 6196.112655 | AW198: 29683.68015 | AX198: 13527.95107
A199: Mid Suffolk | B199: Eastern | C199: England | K199: 2465.4 | S199: 28915.79 | AA199: 8622.75 | AC199: 0 | AD199: 0 | AE199: 0 | AF199: 0 | AG199: 0 | AH199: 0 | AI199: 0 | AQ199: 23905.83 | AS199: 63909.77 | AU199: 57914 | AV199: 5928.490817 | AW199: 30190.4766 | AX199: 11510.09945
A200: Mid Sussex | B200: South East | C200: England | AU200: 103778 | AV200: 20057.90363 | AW200: 42928.26781 | AX200: 20429.64721
... 188 more rows

Sheet Table 1
A1: Back to contents
A2: Table 1: DHP government funding for Great Britain (£million)
B3: DHPs | C3: 2011/12 | D3: 2012/13 | E3: 2013/14 | F3: 2014/15 | G3: 2015/16
B4: Core | C4: 20 | D4: 20 | E4: 20 | F4: 20 | G4: 15
B5: Local Housing Allowance | C5: 10 | D5: 40 | E5: 40 | F5: 40 | G5: 25
B6: RSRS | C6: - | D6: - | E6: 55 | F6: 60 | G6: 60
B7: Benefit cap | C7: - | D7: - | E7: 65 | F7: 45 | G7: 25
B8: Total | C8: 30 | D8: 60 | E8: 180 | F8: 165 | G8: 125
B9: Additional over Core | C9: 10 | D9: 40 | E9: 160 | F9: 145 | G9: 110
A11: Source: Housing Benefit subsidy circulars available from:
A12: https://www.gov.uk/government/collections/housing-benefit-for-local-authorities-subsidy-circulars

Sheet Table 2
A1: Back to contents
A2: Table 2: DHP expenditure compared with full year allocation
C4: DHP spent (Apr 2015 - March 2016) (£) | D4: DHP allocation YEAR (£) | E4: Spent as percentage of allocation (%)
B6: England | C6: 105656437 | D6: 103517385 | E6: 102.0663698
B7: Scotland | C7: 49022979 | D7: 13331287 | E7: 367.7287797
B8: Wales | C8: 6634253 | D8: 6699256 | E8: 99.02969822
B9: Great Britain | C9: 161313669 | D9: 123547928 | E9: 130.5676846
B10: Great Britain (excl Scotland) | C10: 112290690 | D10: 110216641 | E10: 101.881793
A11: Source: DHP Monitoring returns for the period April 2015 to March 2016
A13: Note: Three of the LAs have not provided financial returns and therefore, the DHP spending and allocations for these LAs have not been included
A15: Note: In 2015/16, the Scottish Government made an extra £35 million available to fund DHPs above the £13.3 million contribution from central government; bringing the total funding for Scottish LAs to £48.3 million. The additional funding from the Scottish Government was made available with the explicit intention of being used to fully mitigate the removal of the spare room subsidy policy.

Sheet Chart 1
A1: Back to contents
A2: Chart 1: DHP expenditure distribution for both Great Britain, and Great Britain excluding Scotland
A24: Source: DHP financial returns for the period April 2015 to March 2016.
A25: Note: Three of the LAs have not provided financial returns and therefore, the DHP spending and allocations for these LAs have not been included.
A27: Summary table for chart 1 (contains data from tables 3a and 3b)
B29: Percentage of allocation spent (%) | C29: Great Britain | D29: Great Britain (excl. Scotland)
B30: 0<10 | C30: 0 | D30: 0
B31: 10<20 | C31: 1 | D31: 1
B32: 20<30 | C32: 0 | D32: 0
B33: 30<40 | C33: 2 | D33: 2
B34: 40<50 | C34: 6 | D34: 6
B35: 50<60 | C35: 7 | D35: 7
B36: 60<70 | C36: 9 | D36: 9
B37: 70<80 | C37: 24 | D37: 24
B38: 80<90 | C38: 34 | D38: 34
B39: 90<100 | C39: 132 | D39: 132
B40: 100 | C40: 10 | D40: 9
B41: 100<110 | C41: 82 | D41: 82
B42: 110<120 | C42: 17 | D42: 17
B43: 120<130 | C43: 11 | D43: 10
B44: 130<140 | C44: 5 | D44: 2
B45: 140<150 | C45: 3 | D45: 1
B46: 150<160 | C46: 7 | D46: 3
B47: 160<170 | C47: 1 | D47: 1
B48: 170<180 | C48: 1 | D48: 0
B49: 180<190 | C49: 1 | D49: 1
B50: 190<200 | C50: 3 | D50: 3
B51: 200+ | C51: 21 | D51: 1
A52: Source: DHP financial returns for the period April 2015 to March 2016
A53: Note:

Sheet Table 3a
A1: Back to contents
A2: Table 3a: DHP expenditure distribution for Great Britain
B4: Percentage of allocation spent (%) | C4: Number of LAs | D4: Cumulative Number LAs | E4: Percentage of LAs | F4: Cumulative percentage of LAs
B6: 0<10 | C6: 0 | D6: 0 | E6: 0 | F6: 0
B7: 10<20 | C7: 1 | D7: 1 | E7: 0.002652519894 | F7: 0.002652519894
B8: 20<30 | C8: 0 | D8: 1 | E8: 0 | F8: 0.002652519894
B9: 30<40 | C9: 2 | D9: 3 | E9: 0.005305039788 | F9: 0.007957559682
B10: 40<50 | C10: 6 | D10: 9 | E10: 0.01591511936 | F10: 0.02387267905
B11: 50<60 | C11: 7 | D11: 16 | E11: 0.01856763926 | F11: 0.0424403183
B12: 60<70 | C12: 9 | D12: 25 | E12: 0.02387267905 | F12: 0.06631299735
B13: 70<80 | C13: 24 | D13: 49 | E13: 0.06366047745 | F13: 0.1299734748
B14: 80<90 | C14: 34 | D14: 83 | E14: 0.09018567639 | F14: 0.2201591512
B15: 90<100 | C15: 132 | D15: 215 | E15: 0.350132626 | F15: 0.5702917772
B16: 100 | C16: 10 | D16: 225 | E16: 0.02652519894 | F16: 0.5968169761
B17: 100<110 | C17: 82 | D17: 307 | E17: 0.2175066313 | F17: 0.8143236074
B18: 110<120 | C18: 17 | D18: 324 | E18: 0.0450928382 | F18: 0.8594164456
B19: 120<130 | C19: 11 | D19: 335 | E19: 0.02917771883 | F19: 0.8885941645
B20: 130<140 | C20: 5 | D20: 340 | E20: 0.01326259947 | F20: 0.9018567639
B21: 140<150 | C21: 3 | D21: 343 | E21: 0.007957559682 | F21: 0.9098143236
B22: 150<160 | C22: 7 | D22: 350 | E22: 0.01856763926 | F22: 0.9283819629
B23: 160<170 | C23: 1 | D23: 351 | E23: 0.002652519894 | F23: 0.9310344828
B24: 170<180 | C24: 1 | D24: 352 | E24: 0.002652519894 | F24: 0.9336870027
B25: 180<190 | C25: 1 | D25: 353 | E25: 0.002652519894 | F25: 0.9363395225
B26: 190<200 | C26: 3 | D26: 356 | E26: 0.007957559682 | F26: 0.9442970822
B27: 200+ | C27: 21 | D27: 377 | E27: 0.05570291777 | F27: 1
A28: Source: DHP financial returns for the period April 2015 to March 2016
A29: Note: Percentages may not sum to 100 per cent due to rounding. Three of the LAs have not provided financial returns and therefore, the DHP spending and allocation for these LAs have not been included.

Sheet Table 3b
A1: Back to contents
A2: Table 3b: DHP expenditure distribution for Great Britain excluding Scotland
B4: Percentage of allocation spent (%) | C4: Number of LAs | D4: Cumulative Number LAs | E4: Percentage of LAs | F4: Cumulative percentage of LAs
B6: 0<10 | C6: 0 | D6: 0 | E6: 0 | F6: 0
B7: 10<20 | C7: 1 | D7: 1 | E7: 0.002898550725 | F7: 0.002898550725
B8: 20<30 | C8: 0 | D8: 1 | E8: 0 | F8: 0.002898550725
B9: 30<40 | C9: 2 | D9: 3 | E9: 0.005797101449 | F9: 0.008695652174
B10: 40<50 | C10: 6 | D10: 9 | E10: 0.01739130435 | F10: 0.02608695652
B11: 50<60 | C11: 7 | D11: 16 | E11: 0.02028985507 | F11: 0.04637681159
B12: 60<70 | C12: 9 | D12: 25 | E12: 0.02608695652 | F12: 0.07246376812
B13: 70<80 | C13: 24 | D13: 49 | E13: 0.06956521739 | F13: 0.1420289855
B14: 80<90 | C14: 34 | D14: 83 | E14: 0.09855072464 | F14: 0.2405797101
B15: 90<100 | C15: 132 | D15: 215 | E15: 0.3826086957 | F15: 0.6231884058
B16: 100 | C16: 9 | D16: 224 | E16: 0.02608695652 | F16: 0.6492753623
B17: 100<110 | C17: 82 | D17: 306 | E17: 0.2376811594 | F17: 0.8869565217
B18: 110<120 | C18: 17 | D18: 323 | E18: 0.04927536232 | F18: 0.9362318841
B19: 120<130 | C19: 10 | D19: 333 | E19: 0.02898550725 | F19: 0.9652173913
B20: 130<140 | C20: 2 | D20: 335 | E20: 0.005797101449 | F20: 0.9710144928
B21: 140<150 | C21: 1 | D21: 336 | E21: 0.002898550725 | F21: 0.9739130435
B22: 150<160 | C22: 3 | D22: 339 | E22: 0.008695652174 | F22: 0.9826086957
B23: 160<170 | C23: 1 | D23: 340 | E23: 0.002898550725 | F23: 0.9855072464
B24: 170<180 | C24: 0 | D24: 340 | E24: 0 | F24: 0.9855072464
B25: 180<190 | C25: 1 | D25: 341 | E25: 0.002898550725 | F25: 0.9884057971
B26: 190<200 | C26: 3 | D26: 344 | E26: 0.008695652174 | F26: 0.9971014493
B27: 200+ | C27: 1 | D27: 345 | E27: 0.002898550725 | F27: 1
A28: Source: DHP financial returns for the period April 2015 to March 2016
A29: Note: Percentages may not sum to 100 per cent due to rounding. Three of the LAs have not provided financial returns and therefore, the DHP spending and allocation for these LAs have not been included.

Sheet Table 4
A1: Back to contents
A2: Table 4: Amount over/under-spent by Country
C4: Over spend | E4: Under spend | G4: Exact spend
C5: Count | D5: Amount over-spent by (£) | E5: Count | F5: Amount under-spent by (£) | G5: Count
B6: England | C6: 111 | D6: 6650279 | E6: 203 | F6: 4511227 | G6: 9
B7: Scotland | C7: 31 | D7: 35691692 | E7: 0 | F7: 0 | G7: 1
B8: Wales | C8: 10 | D8: 224208 | E8: 12 | F8: 289211 | G8: 0
B9: Great Britain | C9: 152 | D9: 42566179 | E9: 215 | F9: 4800438 | G9: 10
B10: Great Britain (excl Scotland) | C10: 121 | D10: 6874487 | E10: 215 | F10: 4800438 | G10: 9
A11: Source: DHP financial returns for the period April 2015 to March 2016
A12: Note: Three of the LAs have not provided financial returns and therefore, the DHP spending and allocation for these LAs have not been included.

Sheet Table 5
A1: Back to contents
A2: Table 5: Proportion of DHP expenditure on each welfare reform for both Great Britain and Great Britain excluding Scotland
B4: Welfare Reforms for which DHP was awarded | C4: Amount spent (£) | E4: Percentage of total spent
C5: Great Britain | D5: Great Britain (excl Scotland) | E5: Great Britain | F5: Great Britain (excl Scotland)
B6: Benefit Cap | C6: 14137230.16 | D6: 13370363.33 | E6: 0.1011442198 | F6: 0.1403792977
B7: RSRS | C7: 83511946.75 | D7: 43441387.06 | E7: 0.597482718 | F7: 0.4561036418
B8: LHA | C8: 14113933.87 | D8: 12760339.57 | E8: 0.1009775475 | F8: 0.1339744825
B9: Combination of welfare reforms | C9: 2012593.001 | D9: 1870240.801 | E9: 0.01439901216 | F9: 0.01963619714
B10: Award not for welfare reforms | C10: 26004423.85 | D10: 23809357.62 | E10: 0.186047559 | F10: 0.2499813071
B11: Total | C11: 139772991.3 | D11: 95244552.06 | E11: 1 | F11: 1
A12: Source: DHP monitoring returns for the period April 2015 to March 2016
A14: Note: Percentages may not sum to 100 per cent due to rounding.
A15: The DHP allocations shown here reflect only those LAs who have submitted monitoring returns.
A17: Note: In 2015/16, the Scottish Government made an extra £35 million available to fund DHPs above the £13.3 million contribution from central government; bringing the total funding for Scottish LAs to £48.3 million. The additional funding from the Scottish Government was made available with the explicit intention of being used to fully mitigate the removal of the spare room subsidy policy.

Sheet Table 6
A1: Back to contents
A2: Table 6: DHP expenditure compared with DHP allocation by reform measure for both Great Britain, and Great Britain excluding Scotland
B4: Welfare Reforms for which DHP was awarded | C4: Amount spent (£) | E4: Amount allocated (£) | G4: Spent as percentage of allocation
C5: Great Britain | D5: Great Britain (excl Scotland) | E5: Great Britain | F5: Great Britain (excl Scotland) | G5: Great Britain | H5: Great Britain (excl Scotland)
B6: Benefit Cap | C6: 14137230.16 | D6: 13370363.33 | E6: 19874055.8 | F6: 18744642.85 | G6: 0.7113409714 | H6: 0.7132898415
B7: RSRS | C7: 83511946.75 | D7: 43441387.06 | E7: 50566976.82 | F7: 42325902.79 | G7: 1.65151156 | H7: 1.026354648
B8: LHA | C8: 14113933.87 | D8: 12760339.57 | E8: 20896543.29 | F8: 20007728.04 | G8: 0.6754195501 | H8: 0.6377705428
A9: Source: DHP monitoring returns for the period April 2015 to March 2016
A10: Note: The DHP allocations shown here are for those LAs who have submitted monitoring returns.
A11: Table excludes the non reform and combined awards and does not include the core budget in the allocations.
A13: Note: In 2015/16, the Scottish Government made an extra £35 million available to fund DHPs above the £13.3 million contribution from central government; bringing the total funding for Scottish LAs to £48.3 million. The additional funding from the Scottish Government was made available with the explicit intention of being used to fully mitigate the removal of the spare room subsidy policy.

Sheet Table 7
A1: Back to contents
A2: Table 7: DHP expenditure by purpose of DHP
C4: To help secure and move to alternative accommodation (e.g. rent deposit) (%) | D4: To help with short term rental costs while the claimant secures and moves to alternative accommodation (%) | E4: To help with short term rental costs while the claimant seeks employment (%) | F4: To help with on-going rental costs for disabled person in adapted accommodation (%) | G4: To help with on-going rental costs for a foster carer (%) | H4: To help with on-going rental costs for any other reason (%) | I4: Number and percentage of local authorities providing monitoring return financial purpose of award data
B5: England | C5: 14 | D5: 23 | E5: 12 | F5: 6 | G5: 0 | H5: 45 | I5: 243 (75%)
B6: Scotland | C6: 1 | D6: 17 | E6: 3 | F6: 1 | G6: 0 | H6: 76 | I6: 23 (72%)
B7: Wales | C7: 14 | D7: 15 | E7: 9 | F7: 4 | G7: 0 | H7: 57 | I7: 12 (55%)
B8: Great Britain | C8: 10 | D8: 21 | E8: 10 | F8: 5 | G8: 0 | H8: 54 | I8: 278 (73%)
B9: Great Britain (excl Scotland) | C9: 14 | D9: 22 | E9: 12 | F9: 6 | G9: 0 | H9: 46 | I9: 255 (73%)
A10: Source: DHP monitoring returns for the period April 2015 to March 2016
A11: Note: The DHP allocations shown here are for those LAs who have submitted monitoring returns, and completed the breakdown of expenditure on each reform by purpose of DHP.
A12: Table excludes the non reform and combined awards.

Sheet Table 8
A1: Back to contents
A2: Table 8: Percentage of DHP expenditure on each purpose for DHP category, by reform measure for both Great Britain, and Great Britain excluding Scotland
C4: To help secure and move to alternative accommodation (e.g. rent deposit) (%) | E4: To help with short term rental costs while the claimant secures and moves to alternative accommodation (%) | G4: To help with short term rental costs while the claimant seeks employment (%) | I4: To help with on-going rental costs for disabled person in adapted accommodation (%) | K4: To help with on-going rental costs for a foster carer (%) | M4: To help with on-going rental costs for any other reason (%)
C5: Great Britain | D5: Great Britain (excl Scotland) | E5: Great Britain | F5: Great Britain (excl Scotland) | G5: Great Britain | H5: Great Britain (excl Scotland) | I5: Great Britain | J5: Great Britain (excl Scotland) | K5: Great Britain | L5: Great Britain (excl Scotland) | M5: Great Britain | N5: Great Britain (excl Scotland)
B6: Benefit cap | C6: 5 | D6: 5 | E6: 25 | F6: 26 | G6: 43 | H6: 43 | I6: 1 | J6: 1 | K6: 0 | L6: 0 | M6: 26 | N6: 25
B7: RSRS | C7: 6 | D7: 10 | E7: 23 | F7: 27 | G7: 4 | H7: 6 | I7: 6 | J7: 9 | K7: 0 | L7: 0 | M7: 61 | N7: 47
B8: LHA | C8: 12 | D8: 13 | E8: 27 | F8: 26 | G8: 12 | H8: 12 | I8: 3 | J8: 3 | K8: 0 | L8: 0 | M8: 46 | N8: 46
A9: Source: DHP monitoring returns for the period April 2015 to March 2016
A10: Note: The DHP allocations shown here are for those LAs who have submitted monitoring returns, and completed the breakdown of expenditure on each reform by purpose of DHP.
A11: Table excludes the non reform and combined awards.

Sheet Table 9
A1: Back to contents
A2: Table 9: Proportion of LAs providing monitoring return financial purpose of award data
C4: England | D4: Wales | E4: Scotland | F4: Great Britain | G4: Great Britain (excl Scotland)
B5: Percentage of local authorities providing monitoring return financial reform data (%) | C5: 85 | D5: 77 | E5: 78 | F5: 84 | G5: 84
A6: Source: DHP monitoring returns for the period April 2015 to March 2016

Sheet Table 10
A1: Back to contents
A2: Table 10: Proportion of LAs providing monitoring return financial reform data
C4: England | D4: Wales | E4: Scotland | F4: Great Britain | G4: Great Britain (excl Scotland)
B5: Percentage of local authorities providing financial purpose of award data (%) | C5: 74.5398773 | D5: 54.54545455 | E5: 71.875 | F5: 72.63157895 | G5: 72.70114943
A6: Source: DHP monitoring returns for the period April 2015 to March 2016
